Workbook

Sheet EGX Only -> OUTPUT
E3: X-Factors
F5: 2016-17 | G5: 2017-18 | H5: 2018-19 | I5: 2019-20
E6: Non-capital | F6: ='Price Path Calc - Split'!D137 -> -0.04221095704 | G6: ='Price Path Calc - Split'!E137 -> -0.04221095704 | H6: ='Price Path Calc - Split'!F137 -> -0.04221095704 | I6: ='Price Path Calc - Split'!G137 -> -0.04221095704
E7: Capital | F7: ='Price Path Calc - Split'!D62 -> -0.07440611732 | G7: ='Price Path Calc - Split'!E62 -> -0.07440611732 | H7: ='Price Path Calc - Split'!F62 -> -0.07440611732 | I7: ='Price Path Calc - Split'!G62 -> -0.07440611732
E10: Table 11.3 Annual Metering Charges
C12: Tariff Class | D12: Costs | E12: 2015-16 | F12: 2016-17 | G12: 2017-18 | H12: 2018-19 | I12: 2019-20
C13: Primary | D13: Non-capital | E13: ='Price Path Calc - Split'!C140 -> 10.81 | F13: ='Price Path Calc - Split'!D140 -> 11.54795796 | G13: ='Price Path Calc - Split'!E140 -> 12.33629352 | H13: ='Price Path Calc - Split'!F140 -> 13.17844578 | I13: ='Price Path Calc - Split'!G140 -> 14.07808861
D14: Capital | E14: ='Price Path Calc - Split'!C65 -> 24.48 | F14: ='Price Path Calc - Split'!D65 -> 26.9589983 | G14: ='Price Path Calc - Split'!E65 -> 29.6890355 | H14: ='Price Path Calc - Split'!F65 -> 32.6955334 | I14: ='Price Path Calc - Split'!G65 -> 36.00648812
C15: Load control | D15: Non-capital | E15: ='Price Path Calc - Split'!C141 -> 3.24 | F15: ='Price Path Calc - Split'!D141 -> 3.461182588 | G15: ='Price Path Calc - Split'!E141 -> 3.697464478 | H15: ='Price Path Calc - Split'!F141 -> 3.949876442 | I15: ='Price Path Calc - Split'!G141 -> 4.21951962
D16: Capital | E16: ='Price Path Calc - Split'!C66 -> 7.34 | F16: ='Price Path Calc - Split'!D66 -> 8.083294424 | G16: ='Price Path Calc - Split'!E66 -> 8.901859501 | H16: ='Price Path Calc - Split'!F66 -> 9.803317611 | I16: ='Price Path Calc - Split'!G66 -> 10.79606302
C17: Solar PV | D17: Non-capital | E17: ='Price Path Calc - Split'!C142 -> 7.56 | F17: ='Price Path Calc - Split'!D142 -> 8.076092706 | G17: ='Price Path Calc - Split'!E142 -> 8.627417116 | H17: ='Price Path Calc - Split'!F142 -> 9.216378366 | I17: ='Price Path Calc - Split'!G142 -> 9.84554578
D18: Capital | E18: ='Price Path Calc - Split'!C67 -> 17.14 | F18: ='Price Path Calc - Split'!D67 -> 18.87570387 | G18: ='Price Path Calc - Split'!E67 -> 20.787176 | H18: ='Price Path Calc - Split'!F67 -> 22.89221578 | I18: ='Price Path Calc - Split'!G67 -> 25.21042509
C20: Tariff Class | D20: Costs | E20: 2015-16 | F20: 2016-17 | G20: 2017-18 | H20: 2018-19 | I20: 2019-20
C21: Primary | D21: Total | E21: =E13+E14 -> 35.29 | F21: =F13+F14 -> 38.50695625 | G21: =G13+G14 -> 42.02532902 | H21: =H13+H14 -> 45.87397918 | I21: =I13+I14 -> 50.08457673
C22: Load control | D22: Total | E22: =E15+E16 -> 10.58 | F22: =F15+F16 -> 11.54447701 | G22: =G15+G16 -> 12.59932398 | H22: =H15+H16 -> 13.75319405 | I22: =I15+I16 -> 15.01558264
C23: Solar PV | D23: Total | E23: =E17+E18 -> 24.7 | F23: =F17+F18 -> 26.95179658 | G23: =G17+G18 -> 29.41459312 | H23: =H17+H18 -> 32.10859415 | I23: =I17+I18 -> 35.05597087
E26: Table 11.3 Metering Charges cents per day
C28: Tariff Class | D28: Costs | E28: 2015-16 | F28: 2016-17 | G28: 2017-18 | H28: 2018-19 | I28: 2019-20
C29: Primary | D29: Non-capital | E29: =E13/'Price Path Calc - Split'!$C$3*100 -> 2.961643836 | F29: =F13/'Price Path Calc - Split'!$C$3*100 -> 3.163824098 | G29: =G13/'Price Path Calc - Split'!$C$3*100 -> 3.379806444 | H29: =H13/'Price Path Calc - Split'!$C$3*100 -> 3.610533092 | I29: =I13/'Price Path Calc - Split'!$C$3*100 -> 3.857010578
D30: Capital | E30: =E14/'Price Path Calc - Split'!$C$3*100 -> 6.706849315 | F30: =F14/'Price Path Calc - Split'!$C$3*100 -> 7.38602693 | G30: =G14/'Price Path Calc - Split'!$C$3*100 -> 8.13398233 | H30: =H14/'Price Path Calc - Split'!$C$3*100 -> 8.957680382 | I30: =I14/'Price Path Calc - Split'!$C$3*100 -> 9.864791265
C31: Load control | D31: Non-capital | E31: =E15/'Price Path Calc - Split'!$C$3*100 -> 0.8876712329 | F31: =F15/'Price Path Calc - Split'!$C$3*100 -> 0.9482692023 | G31: =G15/'Price Path Calc - Split'!$C$3*100 -> 1.013003967 | H31: =H15/'Price Path Calc - Split'!$C$3*100 -> 1.082157929 | I31: =I15/'Price Path Calc - Split'!$C$3*100 -> 1.156032773
D32: Capital | E32: =E16/'Price Path Calc - Split'!$C$3*100 -> 2.010958904 | F32: =F16/'Price Path Calc - Split'!$C$3*100 -> 2.214601212 | G32: =G16/'Price Path Calc - Split'!$C$3*100 -> 2.438865617 | H32: =H16/'Price Path Calc - Split'!$C$3*100 -> 2.685840441 | I32: =I16/'Price Path Calc - Split'!$C$3*100 -> 2.957825485
C33: Solar PV | D33: Non-capital | E33: =E17/'Price Path Calc - Split'!$C$3*100 -> 2.071232877 | F33: =F17/'Price Path Calc - Split'!$C$3*100 -> 2.212628139 | G33: =G17/'Price Path Calc - Split'!$C$3*100 -> 2.363675922 | H33: =H17/'Price Path Calc - Split'!$C$3*100 -> 2.525035169 | I33: =I17/'Price Path Calc - Split'!$C$3*100 -> 2.697409803
D34: Capital | E34: =E18/'Price Path Calc - Split'!$C$3*100 -> 4.695890411 | F34: =F18/'Price Path Calc - Split'!$C$3*100 -> 5.171425718 | G34: =G18/'Price Path Calc - Split'!$C$3*100 -> 5.695116713 | H34: =H18/'Price Path Calc - Split'!$C$3*100 -> 6.271839941 | I34: =I18/'Price Path Calc - Split'!$C$3*100 -> 6.906965779
C36: Tariff Class | D36: Costs | E36: 2015-16 | F36: 2016-17 | G36: 2017-18 | H36: 2018-19 | I36: 2019-20
C37: Primary | D37: Total | E37: =E21/'Price Path Calc - Split'!$C$3*100 -> 9.668493151 | F37: =F21/'Price Path Calc - Split'!$C$3*100 -> 10.54985103 | G37: =G21/'Price Path Calc - Split'!$C$3*100 -> 11.51378877 | H37: =H21/'Price Path Calc - Split'!$C$3*100 -> 12.56821347 | I37: =I21/'Price Path Calc - Split'!$C$3*100 -> 13.72180184
C38: Load control | D38: Total | E38: =E22/'Price Path Calc - Split'!$C$3*100 -> 2.898630137 | F38: =F22/'Price Path Calc - Split'!$C$3*100 -> 3.162870414 | G38: =G22/'Price Path Calc - Split'!$C$3*100 -> 3.451869583 | H38: =H22/'Price Path Calc - Split'!$C$3*100 -> 3.767998371 | I38: =I22/'Price Path Calc - Split'!$C$3*100 -> 4.113858258
C39: Solar PV | D39: Total | E39: =E23/'Price Path Calc - Split'!$C$3*100 -> 6.767123288 | F39: =F23/'Price Path Calc - Split'!$C$3*100 -> 7.384053857 | G39: =G23/'Price Path Calc - Split'!$C$3*100 -> 8.058792635 | H39: =H23/'Price Path Calc - Split'!$C$3*100 -> 8.79687511 | I39: =I23/'Price Path Calc - Split'!$C$3*100 -> 9.604375582
E43: 2015-16 | F43: 2016-17 | G43: 2017-18 | H43: 2018-19 | I43: 2019-20
B44: ='NMI profile assessment'!B7 -> 0.4146159821 | C44: Primary | E44: =E21 -> 35.29 | F44: =F21 -> 38.50695625 | G44: =G21 -> 42.02532902 | H44: =H21 -> 45.87397918 | I44: =I21 -> 50.08457673
B45: ='NMI profile assessment'!B16 -> 0.001015745509 | C45: Primary x 2 | E45: =E21*2 -> 70.58 | F45: =F21*2 -> 77.01391251 | G45: =G21*2 -> 84.05065805 | H45: =H21*2 -> 91.74795836 | I45: =I21*2 -> 100.1691535
B46: ='NMI profile assessment'!B8 -> 0.3924112621 | C46: Primary + Load Control | E46: =E21+E22 -> 45.87 | F46: =F21+F22 -> 50.05143326 | G46: =G21+G22 -> 54.624653 | H46: =H21+H22 -> 59.62717323 | I46: =I21+I22 -> 65.10015937
B47: ='NMI profile assessment'!B9 -> 0.005963690368 | C47: Primary + Load Control x 2 | E47: =E21+E22*2 -> 56.45 | F47: =F21+F22*2 -> 61.59591028 | G47: =G21+G22*2 -> 67.22397698 | H47: =H21+H22*2 -> 73.38036729 | I47: =I21+I22*2 -> 80.11574201
B48: ='NMI profile assessment'!B12 -> 0.1181948502 | C48: Primary + Load Control + Solar PV | E48: =E21+E22+E23 -> 70.57 | F48: =F21+F22+F23 -> 77.00322984 | G48: =G21+G22+G23 -> 84.03924612 | H48: =H21+H22+H23 -> 91.73576738 | I48: =I21+I22+I23 -> 100.1561302
B49: ='NMI profile assessment'!B10 -> 0.06154051829 | C49: Primary + Solar PV | E49: =E21+E23 -> 59.99 | F49: =F21+F23 -> 65.45875283 | G49: =G21+G23 -> 71.43992214 | H49: =H21+H23 -> 77.98257333 | I49: =I21+I23 -> 85.1405476

Sheet PTRM output
B2: ALTERNATIVE CONTROL SERVICES: METERING - (NOMINAL)
A4: PTRM calculation to calculate return of, return on, operating and maintence & tax
A5: As at 15/7/2014
B6: MAB | C6: ='Demand Forecast'!$A$15-1&"/"&RIGHT('Demand Forecast'!$A$15,2) -> 2014/15 | D6: ='Demand Forecast'!$A$16-1&"/"&RIGHT('Demand Forecast'!$A$16,2) -> 2015/16 | E6: ='Demand Forecast'!$A$17-1&"/"&RIGHT('Demand Forecast'!$A$17,2) -> 2016/17 | F6: ='Demand Forecast'!$A$18-1&"/"&RIGHT('Demand Forecast'!$A$18,2) -> 2017/18 | G6: ='Demand Forecast'!$A$19-1&"/"&RIGHT('Demand Forecast'!$A$19,2) -> 2018/19 | H6: ='Demand Forecast'!$A$20-1&"/"&RIGHT('Demand Forecast'!$A$20,2) -> 2019/20
B7: Metering - disc | C7: 262.9623645 | D7: 251.8245185 | E7: 239.9654287 | F7: 227.3559941 | G7: 213.9661094 | H7: 199.764633
B8: Metering - electronic | C8: 163.5783727 | D8: 165.4586764 | E8: 166.8775651 | F8: 167.9095616 | G8: 168.3781211 | H8: 167.8172653
B9: Meters Only | C9: =SUM(C7:C8) -> 426.5407372 | D9: 417.2831949 | E9: 406.8429939 | F9: 395.2655558 | G9: 382.3442305 | H9: 367.5818983
B10: Office Equipment & Furniture | C10: -0.1244369644 | D10: -0.07763744215 | E10: -0.02764867351 | F10: 0.009819204831 | G10: 0.009930587214 | H10: 0.009812407999
B11: Motor Vehicles | C11: 4.016483622 | D11: 3.452087721 | E11: 2.866821207 | F11: 2.186154205 | G11: 1.48221781 | H11: 0.7769691571
B12: Plant & Equipment | C12: 1.189098925 | D12: 1.02449488 | E12: 0.8397728781 | F12: 0.6354519202 | G12: 0.4122356061 | H12: 0.1709375056
B13: Buildings | C13: 9.842926682 | D13: 9.910695751 | E13: 9.719071028 | F13: 9.421681515 | G13: 9.412297643 | H13: 9.395420696
B14: Land | C14: 6.034391351 | D14: 6.022958316 | E14: 5.650941058 | F14: 5.547431642 | G14: 5.686117433 | H14: 5.857146114
B15: IT Systems | C15: 1.263627725 | D15: 0.9153181919 | E15: 0.573305109 | F15: 0.2062410336 | G15: 0.08235173081 | H15: 0.0798359043
B16: Other | C16: =SUM(C10:C15) -> 22.22209134 | D16: 21.24791742 | E16: 19.62226261 | F16: 18.00677952 | G16: 17.08515081 | H16: 16.29012178
B17: Total | C17: =C9+C16 -> 448.7628286 | D17: 438.5311124 | E17: 426.4652565 | F17: 413.2723353 | G17: 399.4293813 | H17: 383.8720201
C20: ='Demand Forecast'!$A$15-1&"/"&RIGHT('Demand Forecast'!$A$15,2) -> 2014/15 | D20: ='Demand Forecast'!$A$16-1&"/"&RIGHT('Demand Forecast'!$A$16,2) -> 2015/16 | E20: ='Demand Forecast'!$A$17-1&"/"&RIGHT('Demand Forecast'!$A$17,2) -> 2016/17 | F20: ='Demand Forecast'!$A$18-1&"/"&RIGHT('Demand Forecast'!$A$18,2) -> 2017/18 | G20: ='Demand Forecast'!$A$19-1&"/"&RIGHT('Demand Forecast'!$A$19,2) -> 2018/19 | H20: ='Demand Forecast'!$A$20-1&"/"&RIGHT('Demand Forecast'!$A$20,2) -> 2019/20
B21: ARR
B22: Return on capital | D22: 33298201.88 | E22: 32539008.54 | F22: 31643722.03 | G22: 30664807.28 | H22: 29637660.1 | J22: 128477719.8 | K22: =J22/$J$26 -> 0.4099875978
B23: Return of capital | D23: 19051523.53 | E23: 20678519.03 | F23: 22422977.35 | G23: 23981943.78 | H23: 25751768.21 | J23: 89761732.37 | K23: =J23/$J$26 -> 0.2864403032
B24: O&M | D24: 16679793.5 | E24: 16653714.33 | F24: 17021215.77 | G24: 17681082.21 | H24: 17939573.56 | J24: 69513813.27 | K24: =J24/$J$26 -> 0.2218267989
B25: Benchmark Tax liability | D25: 5825646.872 | E25: 6074932.707 | F25: 6348216.696 | G25: 6615787.34 | H25: 6920376.679 | J25: 25616506.03 | K25: =J25/$J$26 -> 0.08174530014
B26: Total unsmoothed revenue - before adjustments | C26: 71375217.95 | D26: =SUM(D22:D25) -> 74855165.79 | E26: =SUM(E22:E25) -> 75946174.6 | F26: =SUM(F22:F25) -> 77436131.85 | G26: =SUM(G22:G25) -> 78943620.6 | H26: =SUM(H22:H25) -> 80249378.55 | J26: 313369771.5
B27: NPV | C27: 313369771.5 | D27: =AVERAGE(E27:H27) -> 0.01755035556 | E27: =E26/D26-1 -> 0.01457493022 | F27: =F26/E26-1 -> 0.01961859503 | G27: =G26/F26-1 -> 0.01946751106 | H27: =H26/G26-1 -> 0.01654038592
B29: Total smoothed revenue after adjustments | C29: =C26 -> 71375217.95 | D29: 73780340.33 | E29: 75624848.84 | F29: 77515470.06 | G29: 79453356.82 | H29: 81439690.74 | I29: =H29/H26-1 -> 0.01483266544
B30: NPV | C30: 313369771.5
C31: =C27-C30 -> 0
B32: Adjusted revenue X factors | D32: -0.008484764099 | E32: 0 | F32: 0 | G32: 0 | H32: 0
B34: Not Smoothed
B35: ROA & Depn | D35: =D22+D23 -> 52349725.41 | E35: =E22+E23 -> 53217527.57 | F35: =F22+F23 -> 54066699.38 | G35: =G22+G23 -> 54646751.06 | H35: =H22+H23 -> 55389428.31
B36: O&M and Tax | D36: =D24+D25 -> 22505440.37 | E36: =E24+E25 -> 22728647.04 | F36: =F24+F25 -> 23369432.47 | G36: =G24+G25 -> 24296869.55 | H36: =H24+H25 -> 24859950.24
D37: =SUM(D35:D36) -> 74855165.79 | E37: =SUM(E35:E36) -> 75946174.6 | F37: =SUM(F35:F36) -> 77436131.85 | G37: =SUM(G35:G36) -> 78943620.6 | H37: =SUM(H35:H36) -> 80249378.55

Sheet Price Path Calc - Split
A1: Price Path Calculation
B3: Days in Year | C3: 365 | J3: press button to recalculate prices
A5: PTRM Output
C7: 2015-16 | D7: 2016-17 | E7: 2017-18 | F7: 2018-19 | G7: 2019-20 | I7: NPV
B8: ROA & Depn | C8: ='PTRM output'!D35 -> 52349725.41 | D8: ='PTRM output'!E35 -> 53217527.57 | E8: ='PTRM output'!F35 -> 54066699.38 | F8: ='PTRM output'!G35 -> 54646751.06 | G8: ='PTRM output'!H35 -> 55389428.31 | I8: 218239452.2 | J8: =I8/I10 -> 0.696427901
B9: O&M and Tax | C9: ='PTRM output'!D36 -> 22505440.37 | D9: ='PTRM output'!E36 -> 22728647.04 | E9: ='PTRM output'!F36 -> 23369432.47 | F9: ='PTRM output'!G36 -> 24296869.55 | G9: ='PTRM output'!H36 -> 24859950.24 | I9: 95130319.3 | J9: =I9/I10 -> 0.303572099
C10: =SUM(C8:C9) -> 74855165.79 | D10: =SUM(D8:D9) -> 75946174.6 | E10: =SUM(E8:E9) -> 77436131.85 | F10: =SUM(F8:F9) -> 78943620.6 | G10: =SUM(G8:G9) -> 80249378.55 | I10: =SUM(I8:I9) -> 313369771.5
A12: Forecast NTCs ROA & Depn
A13: * assume meters paid for upfront do not require any replacement in this determination
B14: NTCs (avg for year) | C14: 2015-16 | D14: 2016-17 | E14: 2017-18 | F14: 2018-19 | G14: 2019-20
B15: Primary | C15: =ROUND('Demand Forecast'!$B$38,0) -> 1387351 | D15: =ROUND('Demand Forecast'!$B$38,0) -> 1387351 | E15: =ROUND('Demand Forecast'!$B$38,0) -> 1387351 | F15: =ROUND('Demand Forecast'!$B$38,0) -> 1387351 | G15: =ROUND('Demand Forecast'!$B$38,0) -> 1387351
B16: Load Control | C16: =ROUND('Demand Forecast'!$F$38,0) -> 737004 | D16: =ROUND('Demand Forecast'!$F$38,0) -> 737004 | E16: =ROUND('Demand Forecast'!$F$38,0) -> 737004 | F16: =ROUND('Demand Forecast'!$F$38,0) -> 737004 | G16: =ROUND('Demand Forecast'!$F$38,0) -> 737004
B17: Solar PV | C17: =ROUND('Demand Forecast'!$J$38,0) -> 304003 | D17: =ROUND('Demand Forecast'!$J$38,0) -> 304003 | E17: =ROUND('Demand Forecast'!$J$38,0) -> 304003 | F17: =ROUND('Demand Forecast'!$J$38,0) -> 304003 | G17: =ROUND('Demand Forecast'!$J$38,0) -> 304003
C19: =SUM(C15:C18) -> 2428358 | D19: =SUM(D15:D18) -> 2428358 | E19: =SUM(E15:E18) -> 2428358 | F19: =SUM(F15:F18) -> 2428358 | G19: =SUM(G15:G18) -> 2428358
B20: Relationships
B21: Primary | C21: ='Meter Relationships'!$H$32 -> 1
B22: Load Control | C22: ='Meter Relationships'!$H$33 -> 0.3
B23: Solar PV | C23: ='Meter Relationships'!$H$34 -> 0.7
B25: % weighting | C25: 2015-16 | D25: 2016-17 | E25: 2017-18 | F25: 2018-19 | G25: 2019-20
B26: Primary | C26: =C15*$C$21 -> 1387351 | D26: =D15*$C$21 -> 1387351 | E26: =E15*$C$21 -> 1387351 | F26: =F15*$C$21 -> 1387351 | G26: =G15*$C$21 -> 1387351
B27: Load Control | C27: =C16*$C$22 -> 221101.2 | D27: =D16*$C$22 -> 221101.2 | E27: =E16*$C$22 -> 221101.2 | F27: =F16*$C$22 -> 221101.2 | G27: =G16*$C$22 -> 221101.2
B28: Solar PV | C28: =C17*$C$23 -> 212802.1 | D28: =D17*$C$23 -> 212802.1 | E28: =E17*$C$23 -> 212802.1 | F28: =F17*$C$23 -> 212802.1 | G28: =G17*$C$23 -> 212802.1
C30: =SUM(C26:C29) -> 1821254.3 | D30: =SUM(D26:D29) -> 1821254.3 | E30: =SUM(E26:E29) -> 1821254.3 | F30: =SUM(F26:F29) -> 1821254.3 | G30: =SUM(G26:G29) -> 1821254.3
B32: % weighting | C32: 2015-16 | D32: 2016-17 | E32: 2017-18 | F32: 2018-19 | G32: 2019-20
B33: Primary | C33: =C26/C$30 -> 0.7617557856 | D33: 0.7617557856 | E33: 0.7617557856 | F33: 0.7617557856 | G33: 0.7617557856
B34: Load Control | C34: 0.1214005095 | D34: 0.1214005095 | E34: 0.1214005095 | F34: 0.1214005095 | G34: 0.1214005095
B35: Solar PV | C35: 0.1168437049 | D35: 0.1168437049 | E35: 0.1168437049 | F35: 0.1168437049 | G35: 0.1168437049
C37: =SUM(C33:C36) -> 1 | D37: =SUM(D33:D36) -> 1 | E37: =SUM(E33:E36) -> 1 | F37: =SUM(F33:F36) -> 1 | G37: =SUM(G33:G36) -> 1
A39: Calculated $ per NTC (pre smoothing) ROA & Depn
B41: $ per NTC per annum ROA & Depn | C41: 2015-16 | D41: 2016-17 | E41: 2017-18 | F41: 2018-19 | G41: 2019-20
B42: Primary | C42: =C$8/C15*C33 -> 28.74377588 | D42: 29.22026186 | E42: 29.68651845 | F42: 30.00500867 | G42: 30.41279206
B43: Load Control | C43: 8.623132763 | D43: 8.766078559 | E43: 8.905955535 | F43: 9.0015026 | G43: 9.123837617
B44: Solar PV | C44: 20.12064311 | D44: 20.4541833 | E44: 20.78056291 | F44: 21.00350607 | G44: 21.28895444
B46: Tariff Increase | C46: 2015-16 | D46: 2016-17 | E46: 2017-18 | F46: 2018-19 | G46: 2019-20
B47: Primary | D47: =(D42-C42)/C42 -> 0.01657701439 | E47: 0.01595661904 | F47: 0.01072844621 | G47: 0.01359051069
B48: Load Control | D48: 0.01657701439 | E48: 0.01595661904 | F48: 0.01072844621 | G48: 0.01359051069
B49: Solar PV | D49: 0.01657701439 | E49: 0.01595661904 | F49: 0.01072844621 | G49: 0.01359051069
B51: Total Revenue | C51: 2015-16 | D51: 2016-17 | E51: 2017-18 | F51: 2018-19 | G51: 2019-20 | I51: NPV
B52: Primary | C52: =C42*C15 -> 39877706.21 | D52: 40538759.52 | E52: 41185621.06 | F52: 41627478.78 | G52: 42193217.47 | I52: 166245165.3
B53: Load Control | C53: 6355283.339 | D53: 6460634.962 | E53: 6563724.853 | F53: 6634143.422 | G53: 6724304.819 | I53: 26494380.7
B54: Solar PV | C54: 6116735.868 | D54: 6218133.087 | E54: 6317353.468 | F54: 6385128.855 | G54: 6471906.017 | I54: 25499906.15
C55: =SUM(C52:C54) -> 52349725.41 | D55: =SUM(D52:D54) -> 53217527.57 | E55: =SUM(E52:E54) -> 54066699.38 | F55: =SUM(F52:F54) -> 54646751.06 | G55: =SUM(G52:G54) -> 55389428.31 | I55: =SUM(I52:I54) -> 218239452.2
B56: Check | C56: =C55-C8 -> 0 | D56: =D55-D8 -> 0 | E56: =E55-E8 -> 0 | F56: =F55-F8 -> 0 | G56: =G55-G8 -> 0
D57: =D55/C55-1 -> 0.01657701439 | E57: =E55/D55-1 -> 0.01595661904 | F57: =F55/E55-1 -> 0.01072844621 | G57: =G55/F55-1 -> 0.01359051069
A59: Smoothed $ per NTC - what % year on year for each year across all categories gives you the same NPV as above ROA & Depn
B61: CPI | D61: 0.025 | E61: 0.025 | F61: 0.025 | G61: 0.025
B62: X - ROA & Depn | D62: -0.07440611732 | E62: =$D$62 -> -0.07440611732 | F62: =$D$62 -> -0.07440611732 | G62: =$D$62 -> -0.07440611732
B64: $ per NTC per annum (smoothed) ROA & Depn | C64: 2015-16 | D64: 2016-17 | E64: 2017-18 | F64: 2018-19 | G64: 2019-20
B65: Primary | C65: 24.48 | D65: =C65*(1+D$61)*(1-D$62) -> 26.9589983 | E65: 29.6890355 | F65: 32.6955334 | G65: 36.00648812
B66: Load Control | C66: 7.34 | D66: 8.083294424 | E66: 8.901859501 | F66: 9.803317611 | G66: 10.79606302
B67: Solar PV | C67: 17.14 | D67: 18.87570387 | E67: 20.787176 | F67: 22.89221578 | G67: 25.21042509
B69: cents per NTC per day (smoothed) | C69: 2015-16 | D69: 2016-17 | E69: 2017-18 | F69: 2018-19 | G69: 2019-20
B70: Primary | C70: =C65/$C$3*100 -> 6.706849315 | D70: 7.38602693 | E70: 8.13398233 | F70: 8.957680382 | G70: 9.864791265
B71: Load Control | C71: 2.010958904 | D71: 2.214601212 | E71: 2.438865617 | F71: 2.685840441 | G71: 2.957825485
B72: Solar PV | C72: 4.695890411 | D72: 5.171425718 | E72: 5.695116713 | F72: 6.271839941 | G72: 6.906965779
B74: Increase (based on annualised) | C74: 2015-16 | D74: 2016-17 | E74: 2017-18 | F74: 2018-19 | G74: 2019-20
B75: Primary | D75: =D65/C65-1 -> 0.1012662703 | E75: 0.1012662703 | F75: 0.1012662703 | G75: 0.1012662703
B76: Load Control | D76: 0.1012662703 | E76: 0.1012662703 | F76: 0.1012662703 | G76: 0.1012662703
B77: Solar PV | D77: 0.1012662703 | E77: 0.1012662703 | F77: 0.1012662703 | G77: 0.1012662703
B79: ROA & Depn Revenue | C79: 2015-16 | D79: 2016-17 | E79: 2017-18 | F79: 2018-19 | G79: 2019-20 | I79: NPV
B80: Primary | C80: =C65*C15 -> 33962352.48 | D80: 37401593.24 | E80: 41189113.09 | F80: 45360180.95 | G80: 49953637.3 | I80: 166251623.9
B81: Load Control | C81: 5409609.36 | D81: 5957420.323 | E81: 6560706.06 | F81: 7225084.293 | G81: 7956741.631 | I81: 26480978.93
B82: Solar PV | C82: 5210611.42 | D82: 5738270.604 | E82: 6319363.866 | F82: 6959302.275 | G82: 7664044.86 | I82: 25506849.4
C83: =SUM(C80:C82) -> 44582573.26 | D83: =SUM(D80:D82) -> 49097284.17 | E83: =SUM(E80:E82) -> 54069183.02 | F83: =SUM(F80:F82) -> 59544567.52 | G83: =SUM(G80:G82) -> 65574423.79 | I83: =SUM(I80:I82) -> 218239452.2
C85: =C83-C55 -> -7767152.154 | D85: =D83-D55 -> -4120243.393 | E85: =E83-E55 -> 2483.641199 | F85: =F83-F55 -> 4897816.465 | G85: =G83-G55 -> 10184995.48 | I85: =I83-I55 -> -2.503395081e-06
A87: Forecast NTCs O&M and Tax
B89: NTCs (avg for year) | C89: 2015-16 | D89: 2016-17 | E89: 2017-18 | F89: 2018-19 | G89: 2019-20 | I89: Assume P of C
B90: Primary | C90: =ROUND('Demand Forecast'!$B$16,0) -> 1393042 | D90: =ROUND('Demand Forecast'!$B$17,0) -> 1407467 | E90: =IF($I$91="YES",ROUND('Demand Forecast'!$B$40,0),ROUND('Demand Forecast'!$B$18,0)) -> 1422042 | F90: =IF($I$91="YES",E90,ROUND('Demand Forecast'!$B$19,0)) -> 1436768 | G90: =IF($I$91="YES",F90,ROUND('Demand Forecast'!$B$20,0)) -> 1451646 | I90: 2017-18
B91: Load Control | C91: =ROUND('Demand Forecast'!$F$16,0) -> 740012 | D91: =ROUND('Demand Forecast'!$F$17,0) -> 743305 | E91: =IF($I$91="YES",ROUND('Demand Forecast'!$F$40,0),ROUND('Demand Forecast'!$F$18,0)) -> 746612 | F91: =IF($I$91="YES",E91,ROUND('Demand Forecast'!$F$19,0)) -> 749934 | G91: =IF($I$91="YES",F91,ROUND('Demand Forecast'!$F$20,0)) -> 753271 | I91: NO
B92: Solar PV | C92: =ROUND('Demand Forecast'!$J$16,0) -> 323232 | D92: =ROUND('Demand Forecast'!$J$17,0) -> 353232 | E92: =IF($I$91="YES",ROUND('Demand Forecast'!$J$40,0),ROUND('Demand Forecast'!$J$18,0)) -> 382232 | F92: =IF($I$91="YES",E92,ROUND('Demand Forecast'!$J$19,0)) -> 409232 | G92: =IF($I$91="YES",F92,ROUND('Demand Forecast'!$J$20,0)) -> 434232
C94: =SUM(C90:C93) -> 2456286 | D94: =SUM(D90:D93) -> 2504004 | E94: =SUM(E90:E93) -> 2550886 | F94: =SUM(F90:F93) -> 2595934 | G94: =SUM(G90:G93) -> 2639149
B95: Relationships
B96: Primary | C96: ='Meter Relationships'!$H$32 -> 1
B97: Load Control | C97: ='Meter Relationships'!$H$33 -> 0.3
B98: Solar PV | C98: ='Meter Relationships'!$H$34 -> 0.7
B100: % weighting | C100: 2015-16 | D100: 2016-17 | E100: 2017-18 | F100: 2018-19 | G100: 2019-20
B101: Primary | C101: =C90*$C$96 -> 1393042 | D101: =D90*$C$96 -> 1407467 | E101: =E90*$C$96 -> 1422042 | F101: =F90*$C$96 -> 1436768 | G101: =G90*$C$96 -> 1451646
B102: Load Control | C102: =C91*$C$97 -> 222003.6 | D102: =D91*$C$97 -> 222991.5 | E102: =E91*$C$97 -> 223983.6 | F102: =F91*$C$97 -> 224980.2 | G102: =G91*$C$97 -> 225981.3
B103: Solar PV | C103: =C92*$C$98 -> 226262.4 | D103: =D92*$C$98 -> 247262.4 | E103: =E92*$C$98 -> 267562.4 | F103: =F92*$C$98 -> 286462.4 | G103: =G92*$C$98 -> 303962.4
C105: =SUM(C101:C104) -> 1841308 | D105: =SUM(D101:D104) -> 1877720.9 | E105: =SUM(E101:E104) -> 1913588 | F105: =SUM(F101:F104) -> 1948210.6 | G105: =SUM(G101:G104) -> 1981589.7
B107: % weighting | C107: 2015-16 | D107: 2016-17 | E107: 2017-18 | F107: 2018-19 | G107: 2019-20
B108: Primary | C108: =C101/C$105 -> 0.7565502349 | D108: 0.7495613432 | E108: 0.7431286149 | F108: 0.7374808452 | G108: 0.7325663834
B109: Load Control | C109: 0.120568422 | D109: 0.1187564669 | E109: 0.11704902 | F109: 0.1154804311 | G109: 0.1140404091
B110: Solar PV | C110: 0.122881343 | D110: 0.1316821898 | E110: 0.1398223651 | F110: 0.1470387236 | G110: 0.1533932075
C112: =SUM(C108:C111) -> 1 | D112: =SUM(D108:D111) -> 1 | E112: =SUM(E108:E111) -> 1 | F112: =SUM(F108:F111) -> 1 | G112: =SUM(G108:G111) -> 1
A114: Calculated $ per NTC (pre smoothing) O&M and Tax
B116: O&M and Tax $ per NTC per annum | C116: 2015-16 | D116: 2016-17 | E116: 2017-18 | F116: 2018-19 | G116: 2019-20
B117: Primary | C117: =C$9/C90*C108 -> 12.22252897 | D117: 12.10437986 | E117: 12.21236362 | F117: 12.47137735 | G117: 12.54545794
B118: Load Control | C118: 3.666758691 | D118: 3.631313957 | E118: 3.663709085 | F118: 3.741413204 | G118: 3.763637383
B119: Solar PV | C119: 8.555770279 | D119: 8.4730659 | E119: 8.548654532 | F119: 8.729964144 | G119: 8.78182056
B121: Tariff Increase | C121: 2015-16 | D121: 2016-17 | E121: 2017-18 | F121: 2018-19 | G121: 2019-20
B122: Primary | D122: =D117/C117-1 -> -0.009666503003 | E122: 0.008921048525 | F122: 0.02120914011 | G122: 0.005940049202
B123: Load Control | D123: -0.009666503003 | E123: 0.008921048525 | F123: 0.02120914011 | G123: 0.005940049202
B124: Solar PV | D124: -0.009666503003 | E124: 0.008921048525 | F124: 0.02120914011 | G124: 0.005940049202
B126: Total Revenue | C126: 2015-16 | D126: 2016-17 | E126: 2017-18 | F126: 2018-19 | G126: 2019-20 | I126: NPV
B127: Primary | C127: =C117*C90 -> 17026496.2 | D127: 17036515.2 | E127: 17366493.98 | F127: 17918475.89 | G127: 18211563.84 | I127: 70815322.39
B128: Load Control | C128: 2713445.432 | D128: 2699173.821 | E128: 2735369.168 | F128: 2805812.97 | G128: 2835038.895 | I128: 11161361.18
B129: Solar PV | C129: 2765498.739 | D129: 2992958.014 | E129: 3267569.319 | F129: 3572580.686 | G129: 3813347.506 | I129: 13153635.73
C130: =SUM(C127:C129) -> 22505440.37 | D130: =SUM(D127:D129) -> 22728647.04 | E130: =SUM(E127:E129) -> 23369432.47 | F130: =SUM(F127:F129) -> 24296869.55 | G130: =SUM(G127:G129) -> 24859950.24 | I130: =SUM(I127:I129) -> 95130319.3
B131: Check | C131: =C130-C9 -> 0 | D131: =D130-D9 -> 0 | E131: =E130-E9 -> 0 | F131: =F130-F9 -> 0 | G131: =G130-G9 -> 0
D132: =D130/C130-1 -> 0.009917898191 | E132: =E130/D130-1 -> 0.02819285412 | F132: =F130/E130-1 -> 0.039685905 | G132: =G130/F130-1 -> 0.02317503062
A134: Smoothed $ per NTC - what % year on year for each year across all categories gives you the same NPV as above
B136: CPI | D136: 0.025 | E136: 0.025 | F136: 0.025 | G136: 0.025
B137: X - O&M | D137: -0.04221095704 | E137: =$D$137 -> -0.04221095704 | F137: =$D$137 -> -0.04221095704 | G137: =$D$137 -> -0.04221095704
B139: $ per NTC per annum (smoothed) O&M & Tax | C139: 2015-16 | D139: 2016-17 | E139: 2017-18 | F139: 2018-19 | G139: 2019-20
B140: Primary | C140: 10.81 | D140: =C140*(1+D$136)*(1-D$137) -> 11.54795796 | E140: 12.33629352 | F140: 13.17844578 | G140: 14.07808861
B141: Load Control | C141: 3.24 | D141: 3.461182588 | E141: 3.697464478 | F141: 3.949876442 | G141: 4.21951962
B142: Solar PV | C142: 7.56 | D142: 8.076092706 | E142: 8.627417116 | F142: 9.216378366 | G142: 9.84554578
B144: cents per NTC per day (smoothed) | C144: 2015-16 | D144: 2016-17 | E144: 2017-18 | F144: 2018-19 | G144: 2019-20
B145: Primary | C145: =C140/$C$3*100 -> 2.961643836 | D145: 3.163824098 | E145: 3.379806444 | F145: 3.610533092 | G145: 3.857010578
B146: Load Control | C146: 0.8876712329 | D146: 0.9482692023 | E146: 1.013003967 | F146: 1.082157929 | G146: 1.156032773
B147: Solar PV | C147: 2.071232877 | D147: 2.212628139 | E147: 2.363675922 | F147: 2.525035169 | G147: 2.697409803
B149: Increase | C149: 2015-16 | D149: 2016-17 | E149: 2017-18 | F149: 2018-19 | G149: 2019-20
B150: Primary | D150: =D145/C145-1 -> 0.06826623097 | E150: 0.06826623097 | F150: 0.06826623097 | G150: 0.06826623097
B151: Load Control | D151: 0.06826623097 | E151: 0.06826623097 | F151: 0.06826623097 | G151: 0.06826623097
B152: Solar PV | D152: 0.06826623097 | E152: 0.06826623097 | F152: 0.06826623097 | G152: 0.06826623097
B154: O&M and Tax Revenue | C154: 2015-16 | D154: 2016-17 | E154: 2017-18 | F154: 2018-19 | G154: 2019-20 | I154: NPV
B155: Primary | C155: =C140*C90 -> 15058784.02 | D155: 16253369.74 | E155: 17542727.51 | F155: 18934369.19 | G155: 20436401.02 | I155: 70765495.35
B156: Load Control | C156: 2397638.88 | D156: 2572714.324 | E156: 2760571.349 | F156: 2962146.64 | G156: 3178441.764 | I156: 11135612.52
B157: Solar PV | C157: 2443633.92 | D157: 2852734.379 | E157: 3297674.899 | F157: 3771636.951 | G157: 4275251.035 | I157: 13229211.43
C158: =SUM(C155:C157) -> 19900056.82 | D158: =SUM(D155:D157) -> 21678818.44 | E158: =SUM(E155:E157) -> 23600973.76 | F158: =SUM(F155:F157) -> 25668152.78 | G158: =SUM(G155:G157) -> 27890093.81 | I158: =SUM(I155:I157) -> 95130319.3
C160: =C158-C130 -> -2605383.553 | D160: =D158-D130 -> -1049828.595 | E160: =E158-E130 -> 231541.2911 | F160: =F158-F130 -> 1371283.238 | G160: =G158-G130 -> 3030143.573 | I160: =I158-I130 -> 0
A162: Examples of annual charges for NTC combinations - Legacy ROA, Depn, O&M and Tax
C164: 2015-16 | D164: 2016-17 | E164: 2017-18 | F164: 2018-19 | G164: 2019-20
B165: Primary | C165: =C65+C140 -> 35.29 | D165: 38.50695625 | E165: 42.02532902 | F165: 45.87397918 | G165: 50.08457673
B166: Load Control | C166: 10.58 | D166: 11.54447701 | E166: 12.59932398 | F166: 13.75319405 | G166: 15.01558264
B167: Solar PV | C167: 24.7 | D167: 26.95179658 | E167: 29.41459312 | F167: 32.10859415 | G167: 35.05597087
C169: 2015-16 | D169: 2016-17 | E169: 2017-18 | F169: 2018-19 | G169: 2019-20
A170: ='NMI profile assessment'!B7 -> 0.4146159821 | B170: Primary | C170: =C65+C140 -> 35.29 | D170: =D65+D140 -> 38.50695625 | E170: =E65+E140 -> 42.02532902 | F170: =F65+F140 -> 45.87397918 | G170: =G65+G140 -> 50.08457673
A171: ='NMI profile assessment'!B16 -> 0.001015745509 | B171: Primary x 2 | C171: =C170*2 -> 70.58 | D171: =D170*2 -> 77.01391251 | E171: =E170*2 -> 84.05065805 | F171: =F170*2 -> 91.74795836 | G171: =G170*2 -> 100.1691535
A172: ='NMI profile assessment'!B8 -> 0.3924112621 | B172: Primary + Load Control | C172: =C65+C66+C140+C141 -> 45.87 | D172: =D65+D66+D140+D141 -> 50.05143326 | E172: =E65+E66+E140+E141 -> 54.624653 | F172: =F65+F66+F140+F141 -> 59.62717323 | G172: =G65+G66+G140+G141 -> 65.10015937
A173: ='NMI profile assessment'!B9 -> 0.005963690368 | B173: Primary + Load Control x 2 | C173: =C65+C66*2+C140+C141*2 -> 56.45 | D173: =D65+D66*2+D140+D141*2 -> 61.59591028 | E173: =E65+E66*2+E140+E141*2 -> 67.22397698 | F173: =F65+F66*2+F140+F141*2 -> 73.38036729 | G173: =G65+G66*2+G140+G141*2 -> 80.11574201
A174: ='NMI profile assessment'!B12 -> 0.1181948502 | B174: Primary + Load Control + Solar PV | C174: =C65+C66+C67+C140+C141+C142 -> 70.57 | D174: =D65+D66+D67+D140+D141+D142 -> 77.00322984 | E174: =E65+E66+E67+E140+E141+E142 -> 84.03924612 | F174: =F65+F66+F67+F140+F141+F142 -> 91.73576738 | G174: =G65+G66+G67+G140+G141+G142 -> 100.1561302
A175: ='NMI profile assessment'!B10 -> 0.06154051829 | B175: Primary + Solar PV | C175: =C65+C67+C140+C142 -> 59.99 | D175: =D65+D67+D140+D142 -> 65.45875283 | E175: =E65+E67+E140+E142 -> 71.43992214 | F175: =F65+F67+F140+F142 -> 77.98257333 | G175: =G65+G67+G140+G142 -> 85.1405476

Sheet Upfront charges
B2: Average labour hours to install | J2: Table 11.5 & 11.6
B3: Meter type | C3: Hours/meter | D3: Minutes
B4: Single Phase - One Element | C4: 1.25 | D4: =C4*60 -> 75 | K4: 2015-16 | L4: 2016-17 | M4: 2017-18 | N4: 2018-19 | O4: 2019-20
B5: Single Phase - Two Element | C5: 1.25 | D5: =C5*60 -> 75 | J5: Single Phase - One Element | K5: =H41 -> 323.9470502 | L5: =H48 -> 330.1415142 | M5: =H55 -> 346.3145604 | N5: =H62 -> 361.0344068 | O5: =H69 -> 367.8309268
B6: Multi Phase | C6: 1.65 | D6: =C6*60 -> 99 | J6: Single Phase - Two Element | K6: =H42 -> 406.4218054 | L6: =H49 -> 412.6112144 | M6: =H56 -> 431.5385941 | N6: =H63 -> 449.6350478 | O6: =H70 -> 457.0248459
B7: Weighted average install time | C7: 1.273213573 | J7: Multi Phase | K7: 599.2237828 | L7: 607.3899568 | M7: 634.4696019 | N7: 660.9258519 | O7: 671.1317529
J8: Current Transformer (CT) | K8: 1610.631851 | L8: 1626.938936 | M8: 1694.863566 | N8: 1764.651344 | O8: 1788.028174
B9: CPI | C9: 0.025
B10: Labour Escalation | C10: 0.035
B12: Material costs ($/meter)
B13: Year | C13: 2014-15 | D13: 2015-16 | E13: 2016-17 | F13: 2017-18 | G13: 2018-19 | H13: 2019-20
B14: Single Phase - One Element | C14: 86.4779375 | D14: =C14*(1+$C$9) -> 88.63988594 | E14: 90.85588309 | F14: 93.12728016 | G14: 95.45546217 | H14: 97.84184872
B15: Single Phase - Two Element | C15: 137.3473125 | D15: 140.7809953 | E15: 144.3005202 | F15: 147.9080332 | G15: 151.605734 | H15: 155.3958774
B16: Multi Phase | C16: 220 | D16: 225.5 | E16: 231.1375 | F16: 236.9159375 | G16: 242.8388359 | H16: 248.9098068
B17: Current Transformer (CT) | C17: 474.23 | D17: 486.08575 | E17: 498.2378937 | F17: 510.6938411 | G17: 523.4611871 | H17: 536.5477168
D18: * please not CTs are supplied only - installed by customer
B19: Labour rate ($/hour) - including labour oncosts
B20: Year | C20: 2014-15 | D20: 2015-16 | E20: 2016-17 | F20: 2017-18 | G20: 2018-19 | H20: 2019-20
B21: Labour | C21: 71.07 | D21: 73.38 | E21: =D21*(1+C$10) -> 75.9483 | F21: =E21*(1+C$10) -> 78.6064905 | G21: =F21*(1+C$10) -> 81.35771767 | H21: =G21*(1+C$10) -> 84.20523779
B22: Labour OT | C22: 101.42 | D22: 104.72 | E22: =D22*(1+C$10) -> 108.3852 | F22: =E22*(1+C$10) -> 112.178682 | G22: =F22*(1+C$10) -> 116.1049359 | H22: =G22*(1+C$10) -> 120.1686086
B24: Oncosts & Overhead Rates
B25: Year | C25: 2014-15 | D25: 2015-16 | E25: 2016-17 | F25: 2017-18 | G25: 2018-19 | H25: 2019-20
B26: General Overhead | C26: 0.441 | D26: 0.4331 | E26: 0.4049 | F26: 0.4177 | G26: 0.4315 | H26: 0.4152
B27: Fleet Oncost | C27: 0.126 | D27: 0.1121 | E27: 0.1118 | F27: 0.1116 | G27: 0.1115 | H27: 0.1109
B28: Material Oncost | C28: 0.046 | D28: 0.0509 | E28: 0.0493 | F28: 0.0495 | G28: 0.0537 | H28: 0.0498
B29: Corporate Support Overhead | D29: 0.07571586211 | E29: 0.06892497061 | F29: 0.06785335416 | G29: 0.06954852073 | H29: 0.06406545016
B30: Capital Allowance | C30: 0.27 | D30: 0.3336948867 | E30: 0.3698685053 | F30: 0.4062778467 | G30: 0.408358108 | H30: 0.4178298777
B32: Installation Costs - internal | H32: 2014-15 | J32: Installation Costs - internal (OT) | P32: 2014-15 | R32: Installation Costs - internal (Incremental OT cost) | X32: 2014-15
B33: Year | C33: Labour | D33: Materials | E33: Oncosts | F33: Overheads | G33: Allowance | H33: Total | J33: Year | K33: Labour | L33: Materials | M33: Oncosts | N33: Overheads | O33: Allowance | P33: Total | R33: Year | S33: Labour | T33: Materials | U33: Oncosts | V33: Overheads | W33: Allowance | X33: Total
B34: Single Phase - One Element | C34: =$C$4*C21 -> 88.8375 | D34: =$C$14 -> 86.4779375 | E34: =C34*$C$27+D34*$C$28 -> 15.17151012 | F34: =SUM(C34:E34)*$C$26 -> 84.0047439 | G34: =C34*$C$30 -> 23.986125 | H34: =SUM(C34:G34) -> 298.4778165 | J34: Single Phase - One Element | K34: =$C$4*C22 -> 126.775 | L34: =$C$14 -> 86.4779375 | M34: =K34*$C$27+L34*$C$28 -> 19.95163512 | N34: =SUM(K34:M34)*$C$26 -> 102.8432165 | O34: =K34*$C$30 -> 34.22925 | P34: =SUM(K34:O34) -> 370.2770392 | R34: Single Phase - One Element | S34: =K34-C34 -> 37.9375 | T34: =L34-D34 -> 0 | U34: 4.780125 | V34: 18.83847263 | W34: 10.243125 | X34: =SUM(S34:W34) -> 71.79922263
B35: Single Phase - Two Element | C35: =$C$5*C21 -> 88.8375 | D35: =$C$15 -> 137.3473125 | E35: =C35*$C$27+D35*$C$28 -> 17.51150137 | F35: =SUM(C35:E35)*$C$26 -> 107.4700744 | G35: =C35*$C$30 -> 23.986125 | H35: =SUM(C35:G35) -> 375.1525133 | J35: Single Phase - Two Element | K35: =$C$5*C22 -> 126.775 | L35: =$C$15 -> 137.3473125 | M35: =K35*$C$27+L35*$C$28 -> 22.29162637 | N35: =SUM(K35:M35)*$C$26 -> 126.308547 | O35: =K35*$C$30 -> 34.22925 | P35: =SUM(K35:O35) -> 446.9517359 | R35: Single Phase - Two Element | S35: =K35-C35 -> 37.9375 | T35: 0 | U35: 4.780125 | V35: 18.83847263 | W35: 10.243125 | X35: =SUM(S35:W35) -> 71.79922263
B36: Multi Phase (DC) | C36: =$C$6*C21 -> 117.2655 | D36: =$C$16 -> 220 | E36: =C36*$C$27+D36*$C$28 -> 24.895453 | F36: =SUM(C36:E36)*$C$26 -> 159.7129803 | G36: =C36*$C$30 -> 31.661685 | H36: =SUM(C36:G36) -> 553.5356183 | J36: Multi Phase (DC) | K36: =$C$6*C22 -> 167.343 | L36: =$C$16 -> 220 | M36: =K36*$C$27+L36*$C$28 -> 31.205218 | N36: =SUM(K36:M36)*$C$26 -> 184.5797641 | O36: =K36*$C$30 -> 45.18261 | P36: =SUM(K36:O36) -> 648.3105921 | R36: Multi Phase (DC) | S36: 50.0775 | T36: 0 | U36: 6.309765 | V36: 24.86678387 | W36: 13.520925 | X36: =SUM(S36:W36) -> 94.77497386
B37: Multi Phase (CT) - 2 man crew | C37: =$C$6*C21*2 -> 234.531 | D37: =C16+$C$17 -> 694.23 | E37: =C37*$C$27+D37*$C$28 -> 61.485486 | F37: =SUM(C37:E37)*$C$26 -> 436.6987003 | G37: =C37*$C$30 -> 63.32337 | H37: =SUM(C37:G37) -> 1490.268556 | J37: Multi Phase (CT) - 2 man crew | K37: =$C$6*C22*2 -> 334.686 | L37: =$C$16+$C$17 -> 694.23 | M37: =K37*$C$27+L37*$C$28 -> 74.105016 | N37: =SUM(K37:M37)*$C$26 -> 486.4322681 | O37: =K37*$C$30 -> 90.36522 | P37: =SUM(K37:O37) -> 1679.818504 | R37: Multi Phase (CT) - 2 man crew | S37: 100.155 | T37: 0 | U37: 12.61953 | V37: 49.73356773 | W37: 27.04185 | X37: =SUM(S37:W37) -> 189.5499477
B39: Installation Costs - internal | H39: 2015-16 | J39: Installation Costs - internal (OT) | P39: 2015-16 | R39: Installation Costs - internal (Incremental OT cost) | X39: 2015-16
B40: Year | C40: Labour | D40: Materials | E40: Oncosts | F40: Overheads | G40: Allowance | H40: Total | J40: Year | K40: Labour | L40: Materials | M40: Oncosts | N40: Overheads | O40: Allowance | P40: Total | R40: Year | S40: Labour | T40: Materials | U40: Oncosts | V40: Overheads | W40: Allowance | X40: Total
B41: Single Phase - One Element | C41: =$C$4*$D$21 -> 91.725 | D41: =$D$14 -> 88.63988594 | E41: =C41*$D$27+D41*$D$28 -> 14.79414269 | F41: =SUM(C41:E41)*$D$26+SUM(C41:D41)*$D$29 -> 98.17985813 | G41: =C41*$D$30 -> 30.60816348 | H41: =SUM(C41:G41) -> 323.9470502 | J41: Single Phase - One Element | K41: =$C$4*$D$22 -> 130.9 | L41: =$D$14 -> 88.63988594 | M41: =K41*$D$27+L41*$D$28 -> 19.18566019 | N41: =SUM(K41:M41)*$D$26+SUM(K41:L41)*$D$29 -> 120.0146858 | O41: =K41*$D$30 -> 43.68066066 | P41: =SUM(K41:O41) -> 402.4208926 | R41: Single Phase - One Element | S41: =K41-C41 -> 39.175 | T41: =L41-D41 -> 0 | U41: 4.3915175 | V41: 21.83482763 | W41: 13.07249718 | X41: =SUM(S41:W41) -> 78.47384231
B42: Single Phase - Two Element | C42: =$C$5*$D$21 -> 91.725 | D42: =$D$15 -> 140.7809953 | E42: =C42*$D$27+D42*$D$28 -> 17.44812516 | F42: =SUM(C42:E42)*$D$26+SUM(C42:D42)*$D$29 -> 125.8595215 | G42: =C42*$D$30 -> 30.60816348 | H42: =SUM(C42:G42) -> 406.4218054 | J42: Single Phase - Two Element | K42: =$C$5*$D$22 -> 130.9 | L42: =$D$15 -> 140.7809953 | M42: =K42*$D$27+L42*$D$28 -> 21.83964266 | N42: =SUM(K42:M42)*$D$26+SUM(K42:L42)*$D$29 -> 147.6943491 | O42: =K42*$D$30 -> 43.68066066 | P42: =SUM(K42:O42) -> 484.8956477 | R42: Single Phase - Two Element | S42: =K42-C42 -> 39.175 | T42: 0 | U42: 4.3915175 | V42: 21.83482763 | W42: 13.07249718 | X42: =SUM(S42:W42) -> 78.47384231
B43: Multi Phase (DC) | C43: =$C$6*$D$21 -> 121.077 | D43: =$D$16 -> 225.5 | E43: =C43*$D$27+D43*$D$28 -> 25.0506817 | F43: =SUM(C43:E43)*$D$26+SUM(C43:D43)*$D$29 -> 187.1933253 | G43: =C43*$D$30 -> 40.40277579 | H43: =SUM(C43:G43) -> 599.2237828 | J43: Multi Phase (DC) | K43: =$C$6*$D$22 -> 172.788 | L43: =$D$16 -> 225.5 | M43: =K43*$D$27+L43*$D$28 -> 30.8474848 | N43: =SUM(K43:M43)*$D$26+SUM(K43:L43)*$D$29 -> 216.0152978 | O43: =K43*$D$30 -> 57.65847208 | P43: =SUM(K43:O43) -> 702.8092546 | R43: Multi Phase (DC) | S43: 51.711 | T43: 0 | U43: 5.7968031 | V43: 28.82197247 | W43: 17.25569628 | X43: =SUM(S43:W43) -> 103.5854719
B44: Multi Phase (CT) - 2 man crew | C44: =$C$6*$D$21*2 -> 242.154 | D44: =$D$17+$D$16 -> 711.58575 | E44: =C44*$D$27+D44*$D$28 -> 63.36517807 | F44: =SUM(C44:E44)*$D$26+SUM(C44:D44)*$D$29 -> 512.7213718 | G44: =C44*$D$30 -> 80.80555158 | H44: =SUM(C44:G44) -> 1610.631851 | J44: Multi Phase (CT) - 2 man crew | K44: =$C$6*$D$22*2 -> 345.576 | L44: =$D$17+$D$16 -> 711.58575 | M44: =K44*$D$27+L44*$D$28 -> 74.95878427 | N44: =SUM(K44:M44)*$D$26+SUM(K44:L44)*$D$29 -> 570.3653167 | O44: =K44*$D$30 -> 115.3169442 | P44: =SUM(K44:O44) -> 1817.802795 | R44: Multi Phase (CT) - 2 man crew | S44: 103.422 | T44: 0 | U44: 11.5936062 | V44: 57.64394494 | W44: 34.51139257 | X44: =SUM(S44:W44) -> 207.1709437
B46: Installation Costs - internal | H46: 2016-17 | J46: Installation Costs - internal (OT) | P46: 2016-17 | R46: Installation Costs - internal (Incremental OT cost) | X46: 2016-17
B47: Year | C47: Labour | D47: Materials | E47: Oncosts | F47: Overheads | G47: Allowance | H47: Total | J47: Year | K47: Labour | L47: Materials | M47: Oncosts | N47: Overheads | O47: Allowance | P47: Total | R47: Year | S47: Labour | T47: Materials | U47: Oncosts | V47: Overheads | W47: Allowance | X47: Total
B48: Single Phase - One Element | C48: =$C$4*$E$21 -> 94.935375 | D48: =$E$14 -> 90.85588309 | E48: =C48*$E$27+D48*$E$28 -> 15.09296996 | F48: =SUM(C48:E48)*$E$26+SUM(C48:D48)*$E$29 -> 94.14368094 | G48: =C48*$E$30 -> 35.11360525 | H48: =SUM(C48:G48) -> 330.1415142 | J48: Single Phase - One Element | K48: =$C$4*$E$22 -> 135.4815 | L48: =$E$14 -> 90.85588309 | M48: =K48*$E$27+L48*$E$28 -> 19.62602674 | N48: =SUM(K48:M48)*$E$26+SUM(K48:L48)*$E$29 -> 115.1908821 | O48: =K48*$E$30 -> 50.1103399 | P48: =SUM(K48:O48) -> 411.2646318 | R48: Single Phase - One Element | S48: =K48-C48 -> 40.546125 | T48: =L48-D48 -> 0 | U48: 4.533056775 | V48: 21.04720117 | W48: 14.99673465 | X48: =SUM(S48:W48) -> 81.1231176
B49: Single Phase - Two Element | C49: =$C$5*$E$21 -> 94.935375 | D49: =$E$15 -> 144.3005202 | E49: =C49*$E$27+D49*$E$28 -> 17.72779057 | F49: =SUM(C49:E49)*$E$26+SUM(C49:D49)*$E$29 -> 120.5339234 | G49: =C49*$E$30 -> 35.11360525 | H49: =SUM(C49:G49) -> 412.6112144 | J49: Single Phase - Two Element | K49: =$C$5*$E$22 -> 135.4815 | L49: =$E$15 -> 144.3005202 | M49: =K49*$E$27+L49*$E$28 -> 22.26084735 | N49: =SUM(K49:M49)*$E$26+SUM(K49:L49)*$E$29 -> 141.5811246 | O49: =K49*$E$30 -> 50.1103399 | P49: =SUM(K49:O49) -> 493.734332 | R49: Single Phase - Two Element | S49: =K49-C49 -> 40.546125 | T49: 0 | U49: 4.533056775 | V49: 21.04720117 | W49: 14.99673465 | X49: =SUM(S49:W49) -> 81.1231176
B50: Multi Phase (DC) | C50: =$C$6*$E$21 -> 125.314695 | D50: =$E$16 -> 231.1375 | E50: =C50*$E$27+D50*$E$28 -> 25.40526165 | F50: 179.1825413 | G50: 46.34995893 | H50: =SUM(C50:G50) -> 607.3899568 | J50: Multi Phase (DC) | K50: =$C$6*$E$22 -> 178.83558 | L50: =$E$16 -> 231.1375 | M50: =K50*$E$27+L50*$E$28 -> 31.38889659 | N50: 206.9648468 | O50: 66.14564866 | P50: =SUM(K50:O50) -> 714.4724721 | R50: Multi Phase (DC) | S50: 53.520885 | T50: 0 | U50: 5.983634943 | V50: 27.78230555 | W50: 19.79568974 | X50: =SUM(S50:W50) -> 107.0825152
B51: Multi Phase (CT) - 2 man crew | C51: =$C$6*$E$21*2 -> 250.62939 | D51: =$E$17+$E$16 -> 729.3753937 | E51: 63.97857271 | F51: 490.2556619 | G51: 92.69991786 | H51: =SUM(C51:G51) -> 1626.938936 | J51: Multi Phase (CT) - 2 man crew | K51: =$C$6*$E$22*2 -> 357.67116 | L51: =$E$17+$E$16 -> 729.3753937 | M51: 75.9458426 | N51: 545.8202731 | O51: 132.2912973 | P51: =SUM(K51:O51) -> 1841.103967 | R51: Multi Phase (CT) - 2 man crew | S51: 107.04177 | T51: 0 | U51: 11.96726989 | V51: 55.5646111 | W51: 39.59137947 | X51: =SUM(S51:W51) -> 214.1650305
B53: Installation Costs - internal | H53: 2017-18 | J53: Installation Costs - internal (OT) | P53: 2017-18 | R53: Installation Costs - internal (Incremental OT cost) | X53: 2017-18
B54: Year | C54: Labour | D54: Materials | E54: Oncosts | F54: Overheads | G54: Allowance | H54: Total | J54: Year | K54: Labour | L54: Materials | M54: Oncosts | N54: Overheads | O54: Allowance | P54: Total | R54: Year | S54: Labour | T54: Materials | U54: Oncosts | V54: Overheads | W54: Allowance | X54: Total
B55: Single Phase - One Element | C55: =$C$4*$F$21 -> 98.25811312 | D55: =$F$14 -> 93.12728016 | E55: =C55*$F$27+D55*$F$28 -> 15.57540579 | F55: =SUM(C55:E55)*$F$26+SUM(C55:D55)*$F$29 -> 99.43366665 | G55: =C55*$F$30 -> 39.92009463 | H55: =SUM(C55:G55) -> 346.3145604 | J55: Single Phase - One Element | K55: =$C$4*$F$22 -> 140.2233525 | L55: =$F$14 -> 93.12728016 | M55: =K55*$F$27+L55*$F$28 -> 20.25872651 | N55: =SUM(K55:M55)*$F$26+SUM(K55:L55)*$F$29 -> 121.7662524 | O55: =K55*$F$30 -> 56.96964172 | P55: =SUM(K55:O55) -> 432.3452533 | R55: Single Phase - One Element | S55: =K55-C55 -> 41.96523938 | T55: =L55-D55 -> 0 | U55: 4.683320714 | V55: 22.3325858 | W55: 17.04954709 | X55: =SUM(S55:W55) -> 86.03069298
B56: Single Phase - Two Element | C56: =$C$5*$F$21 -> 98.25811312 | D56: =$F$15 -> 147.9080332 | E56: =C56*$F$27+D56*$F$28 -> 18.28705307 | F56: =SUM(C56:E56)*$F$26+SUM(C56:D56)*$F$29 -> 127.1653001 | G56: =C56*$F$30 -> 39.92009463 | H56: =SUM(C56:G56) -> 431.5385941 | J56: Single Phase - Two Element | K56: =$C$5*$F$22 -> 140.2233525 | L56: =$F$15 -> 147.9080332 | M56: =K56*$F$27+L56*$F$28 -> 22.97037378 | N56: =SUM(K56:M56)*$F$26+SUM(K56:L56)*$F$29 -> 149.4978859 | O56: =K56*$F$30 -> 56.96964172 | P56: =SUM(K56:O56) -> 517.5692871 | R56: Single Phase - Two Element | S56: =K56-C56 -> 41.96523938 | T56: 0 | U56: 4.683320714 | V56: 22.3325858 | W56: 17.04954709 | X56: =SUM(S56:W56) -> 86.03069298
B57: Multi Phase (DC) | C57: =$C$6*$F$21 -> 129.7007093 | D57: =$F$16 -> 236.9159375 | E57: 26.20193807 | F57: 188.9564921 | G57: 52.69452491 | H57: =SUM(C57:G57) -> 634.4696019 | J57: Multi Phase (DC) | K57: =$C$6*$F$22 -> 185.0948253 | L57: =$F$16 -> 236.9159375 | M57: 32.38392141 | N57: 218.4355053 | O57: 75.19992707 | P57: =SUM(K57:O57) -> 748.0301166 | R57: Multi Phase (DC) | S57: 55.39411598 | T57: 0 | U57: 6.181983343 | V57: 29.47901325 | W57: 22.50540216 | X57: =SUM(S57:W57) -> 113.5605147
B58: Multi Phase (CT) - 2 man crew | C58: =$C$6*$F$21*2 -> 259.4014186 | D58: =$F$17+$F$16 -> 747.6097786 | E58: 65.95588236 | F58: 516.5074366 | G58: 105.3890498 | H58: =SUM(C58:G58) -> 1694.863566 | J58: Multi Phase (CT) - 2 man crew | K58: =$C$6*$F$22*2 -> 370.1896506 | L58: =$F$17+$F$16 -> 747.6097786 | M58: 78.31984905 | N58: 575.4654631 | O58: 150.3998541 | P58: =SUM(K58:O58) -> 1921.984595 | R58: Multi Phase (CT) - 2 man crew | S58: 110.788232 | T58: 0 | U58: 12.36396669 | V58: 58.95802651 | W58: 45.01080432 | X58: =SUM(S58:W58) -> 227.1210295
B60: Installation Costs - internal | H60: 2018-19 | J60: Installation Costs - internal (OT) | P60: 2018-19 | R60: Installation Costs - internal (Incremental OT cost) | X60: 2018-19
B61: Year | C61: Labour | D61: Materials | E61: Oncosts | F61: Overheads | G61: Allowance | H61: Total | J61: Year | K61: Labour | L61: Materials | M61: Oncosts | N61: Overheads | O61: Allowance | P61: Total | R61: Year | S61: Labour | T61: Materials | U61: Oncosts | V61: Overheads | W61: Allowance | X61: Total
B62: Single Phase - One Element | C62: =$C$4*$G$21 -> 101.6971471 | D62: =$G$14 -> 95.45546217 | E62: =C62*$G$27+D62*$G$28 -> 16.46519022 | F62: =SUM(C62:E62)*$G$26+SUM(C62:D62)*$G$29 -> 105.8877528 | G62: =C62*$G$30 -> 41.52885458 | H62: =SUM(C62:G62) -> 361.0344068 | J62: Single Phase - One Element | K62: =$C$4*$G$22 -> 145.1311698 | L62: =$G$14 -> 95.45546217 | M62: =K62*$G$27+L62*$G$28 -> 21.30808376 | N62: =SUM(K62:M62)*$G$26+SUM(K62:L62)*$G$29 -> 129.7400142 | O62: =K62*$G$30 -> 59.26548993 | P62: =SUM(K62:O62) -> 450.9002199 | R62: Single Phase - One Element | S62: =K62-C62 -> 43.43402275 | T62: =L62-D62 -> 0 | U62: 4.842893537 | V62: 23.85226141 | W62: 17.73663536 | X62: =SUM(S62:W62) -> 89.86581306
B63: Single Phase - Two Element | C63: =$C$5*$G$21 -> 101.6971471 | D63: =$G$15 -> 151.605734 | E63: =C63*$G$27+D63*$G$28 -> 19.48045982 | F63: =SUM(C63:E63)*$G$26+SUM(C63:D63)*$G$29 -> 135.3228523 | G63: =C63*$G$30 -> 41.52885458 | H63: =SUM(C63:G63) -> 449.6350478 | J63: Single Phase - Two Element | K63: =$C$5*$G$22 -> 145.1311698 | L63: =$G$15 -> 151.605734 | M63: =K63*$G$27+L63*$G$28 -> 24.32335335 | N63: =SUM(K63:M63)*$G$26+SUM(K63:L63)*$G$29 -> 159.1751137 | O63: =K63*$G$30 -> 59.26548993 | P63: =SUM(K63:O63) -> 539.5008609 | R63: Single Phase - Two Element | S63: =K63-C63 -> 43.43402275 | T63: 0 | U63: 4.842893537 | V63: 23.85226141 | W63: 17.73663536 | X63: =SUM(S63:W63) -> 89.86581306
B64: Multi Phase (DC) | C64: =$C$6*$G$21 -> 134.2402342 | D64: =$G$16 -> 242.8388359 | E64: 28.0082316 | F64: 201.0204622 | G64: 54.81808804 | H64: =SUM(C64:G64) -> 660.9258519 | J64: Multi Phase (DC) | K64: =$C$6*$G$22 -> 191.5731442 | L64: =$G$16 -> 242.8388359 | M64: 34.40085107 | N64: 232.5054473 | O64: 78.23044671 | P64: =SUM(K64:O64) -> 779.5487252 | R64: Multi Phase (DC) | S64: 57.33291003 | T64: 0 | U64: 6.392619469 | V64: 31.48498506 | W64: 23.41235867 | X64: =SUM(S64:W64) -> 118.6228732
B65: Multi Phase (CT) - 2 man crew | C65: =$C$6*$G$21*2 -> 268.4804683 | D65: =$G$17+$G$16 -> 766.3000231 | E65: 71.08588345 | F65: 549.1487932 | G65: 109.6361761 | H65: =SUM(C65:G65) -> 1764.651344 | J65: Multi Phase (CT) - 2 man crew | K65: =$C$6*$G$22*2 -> 383.1462884 | L65: =$G$17+$G$16 -> 766.3000231 | M65: 83.87112239 | N65: 612.1187633 | O65: 156.4608934 | P65: =SUM(K65:O65) -> 2001.897091 | R65: Multi Phase (CT) - 2 man crew | S65: 114.6658201 | T65: 0 | U65: 12.78523894 | V65: 62.96997012 | W65: 46.82471734 | X65: =SUM(S65:W65) -> 237.2457465
B67: Installation Costs - internal | H67: 2019-20 | J67: Installation Costs - internal (OT) | P67: 2019-20 | R67: Installation Costs - internal (Incremental OT cost) | X67: 2019-20
B68: Year | C68: Labour | D68: Materials | E68: Oncosts | F68: Overheads | G68: Allowance | H68: Total | J68: Year | K68: Labour | L68: Materials | M68: Oncosts | N68: Overheads | O68: Allowance | P68: Total | R68: Year | S68: Labour | T68: Materials | U68: Oncosts | V68: Overheads | W68: Allowance | X68: Total
B69: Single Phase - One Element | C69: =$C$4*$H$21 -> 105.2565472 | D69: =$H$14 -> 97.84184872 | E69: =C69*$H$27+D69*$H$28 -> 16.54547515 | F69: =SUM(C69:E69)*$H$26+SUM(C69:D69)*$H$29 -> 104.2077254 | G69: =C69*$H$30 -> 43.97933025 | H69: =SUM(C69:G69) -> 367.8309268 | J69: Single Phase - One Element | K69: =$C$4*$H$22 -> 150.2107608 | L69: =$H$14 -> 97.84184872 | M69: =K69*$H$27+L69*$H$28 -> 21.53089744 | N69: =SUM(K69:M69)*$H$26+SUM(K69:L69)*$H$29 -> 127.8226742 | O69: =K69*$H$30 -> 62.7625438 | P69: =SUM(K69:O69) -> 460.1687249 | R69: Single Phase - One Element | S69: =K69-C69 -> 44.95421355 | T69: =L69-D69 -> 0 | U69: 4.985422283 | V69: 23.61494873 | W69: 18.78321355 | X69: =SUM(S69:W69) -> 92.33779811
B70: Single Phase - Two Element | C70: =$C$5*$H$21 -> 105.2565472 | D70: =$H$15 -> 155.3958774 | E70: =C70*$H$27+D70*$H$28 -> 19.41166578 | F70: =SUM(C70:E70)*$H$26+SUM(C70:D70)*$H$29 -> 132.9814253 | G70: =C70*$H$30 -> 43.97933025 | H70: =SUM(C70:G70) -> 457.0248459 | J70: Single Phase - Two Element | K70: =$C$5*$H$22 -> 150.2107608 | L70: =$H$15 -> 155.3958774 | M70: =K70*$H$27+L70*$H$28 -> 24.39708806 | N70: =SUM(K70:M70)*$H$26+SUM(K70:L70)*$H$29 -> 156.596374 | O70: =K70*$H$30 -> 62.7625438 | P70: =SUM(K70:O70) -> 549.362644 | R70: Single Phase - Two Element | S70: =K70-C70 -> 44.95421355 | T70: 0 | U70: 4.985422283 | V70: 23.61494873 | W70: 18.78321355 | X70: =SUM(S70:W70) -> 92.33779811
B71: Multi Phase (DC) | C71: =$C$6*$H$21 -> 138.9386423 | D71: =$H$16 -> 248.9098068 | E71: 27.80400382 | F71: 197.426584 | G71: 58.05271594 | H71: =SUM(C71:G71) -> 671.1317529 | J71: Multi Phase (DC) | K71: =$C$6*$H$22 -> 198.2782042 | L71: =$H$16 -> 248.9098068 | M71: 34.38476123 | N71: 228.5983163 | O71: 82.84655782 | P71: =SUM(K71:O71) -> 793.0176464 | R71: Multi Phase (DC) | S71: 59.33956189 | T71: 0 | U71: 6.580757413 | V71: 31.17173232 | W71: 24.79384188 | X71: =SUM(S71:W71) -> 121.8858935
B72: Multi Phase (CT) - 2 man crew | C72: =$C$6*$H$21*2 -> 277.8772847 | D72: =$H$17+$H$16 -> 785.4575236 | E72: 69.93237555 | F72: 538.6555579 | G72: 116.1054319 | H72: =SUM(C72:G72) -> 1788.028174 | J72: Multi Phase (CT) - 2 man crew | K72: =$C$6*$H$22*2 -> 396.5564085 | L72: =$H$17+$H$16 -> 785.4575236 | M72: 83.09389038 | N72: 600.9990226 | O72: 165.6931156 | P72: =SUM(K72:O72) -> 2031.799961 | R72: Multi Phase (CT) - 2 man crew | S72: 118.6791238 | T72: 0 | U72: 13.16151483 | V72: 62.34346463 | W72: 49.58768377 | X72: =SUM(S72:W72) -> 243.771787

Sheet INPUTS

Sheet Demand Forecast
A1: Forecast of NTCs for 2015 -2020
A3: Actual Average NTC's
A4: Financial Year | B4: Primary | C4: Growth | D4: % Growth | E4: % of Total | F4: CL | G4: Growth | H4: % Growth | I4: % of Total | J4: FiT | K4: Growth | L4: % Growth | M4: % of Total | N4: Total | O4: Growth | P4: %
A5: 2012 Avg | B5: =AVERAGE('PIVOT NMI''s'!H7:H18) -> 1336804.25 | E5: =IF($N5=0,0,B5/$N5) -> 0.6133464835 | F5: =AVERAGE('PIVOT NMI''s'!K7:K18) -> 726987.4167 | I5: =IF($N5=0,0,F5/$N5) -> 0.3335530805 | J5: =AVERAGE('PIVOT NMI''s'!B7:B18) -> 115733.75 | M5: =IF($N5=0,0,J5/$N5) -> 0.05310043605 | N5: =J5+F5+B5 -> 2179525.417
A6: 2013 Avg | B6: =AVERAGE('PIVOT NMI''s'!H20:H31) -> 1350042.167 | C6: =B6-B5 -> 13237.91667 | D6: =C6/B5 -> 0.009902659022 | E6: =IF($N6=0,0,B6/$N6) -> 0.5931089338 | F6: =AVERAGE('PIVOT NMI''s'!K20:K31) -> 730678.8333 | G6: =F6-F5 -> 3691.416667 | H6: =G6/F5 -> 0.005077689905 | I6: =IF($N6=0,0,F6/$N6) -> 0.3210063763 | J6: =AVERAGE('PIVOT NMI''s'!B20:B31) -> 195491.8333 | K6: =J6-J5 -> 79758.08333 | L6: =K6/J5 -> 0.6891514647 | M6: =IF($N6=0,0,J6/$N6) -> 0.0858846899 | N6: =J6+F6+B6 -> 2276212.833 | O6: =N6-N5 -> 96687.41667 | P6: =N6/N5-1 -> 0.04436168348
A7: 2014 Avg | B7: =AVERAGE('PIVOT NMI''s'!H33:H44) -> 1364633.333 | C7: =B7-B6 -> 14591.16667 | D7: =C7/B6 -> 0.01080793402 | E7: =IF($N7=0,0,B7/$N7) -> 0.5823463384 | F7: =AVERAGE('PIVOT NMI''s'!K33:K44) -> 733470.8333 | G7: =F7-F6 -> 2792 | H7: =G7/F6 -> 0.003821104256 | I7: =IF($N7=0,0,F7/$N7) -> 0.3130027999 | J7: =AVERAGE('PIVOT NMI''s'!B33:B44) -> 245232.1667 | K7: =J7-J6 -> 49740.33333 | L7: =K7/J6 -> 0.2544368861 | M7: =IF($N7=0,0,J7/$N7) -> 0.1046508618 | N7: =J7+F7+B7 -> 2343336.333 | O7: =N7-N6 -> 67123.5 | P7: =N7/N6-1 -> 0.02948911412
A10: Average growth | D10: =AVERAGE(D5:D8) -> 0.01035529652 | E10: =AVERAGE(E5:E8) -> 0.5962672519 | H10: =AVERAGE(H5:H8) -> 0.004449397081 | I10: =AVERAGE(I5:I8) -> 0.3225207522 | L10: =AVERAGE(L5:L8) -> 0.4717941754 | M10: =AVERAGE(M5:M8) -> 0.0812119959 | P10: =AVERAGE(P5:P8) -> 0.0369253988
A11: Applicable growth
A13: Forecast NTCs
A14: FY Average | B14: Primary | C14: Growth | D14: % Growth | F14: CL | G14: Growth | H14: % Growth | J14: FiT | K14: Growth | L14: % Growth | N14: Total | P14: check
A15: 2015 | B15: =B7*(1+D10) -> 1378764.516 | C15: =B15-B7 -> 14131.18281 | D15: =D10 -> 0.01035529652 | E15: =B15/N15 -> 0.5674243375 | F15: =F7*(1+H10) -> 736734.3363 | G15: =F15-F7 -> 3263.502985 | H15: =G15/F15 -> 0.004429687641 | I15: =F15/N15 -> 0.3031997036 | J15: =J7+K15 -> 288232.1667 | K15: 43000 | L15: =K15/J7 -> 0.1753440447 | M15: =J15/N15 -> 0.1186206522 | N15: =N7*(1+$P$10) -> 2429864.962 | O15: =N15-N7 -> 86528.62863 | P15: =N15/N7-1 -> 0.0369253988
A16: =A15+1 -> 2016 | B16: =B15*(1+$D$10) -> 1393042.032 | C16: =B16-B15 -> 14277.5154 | E16: 0.5528846968 | F16: =F15*(1+$H$10) -> 740012.3599 | G16: =F16-F15 -> 3278.023605 | I16: 0.2937036356 | J16: =J15+K16 -> 323232.1667 | K16: 35000 | L16: =K16/J15 -> 0.121429889 | M16: 0.1282876715 | N16: =N15*(1+$P$10) -> 2519588.695 | O16: =N16-N15 -> 89723.73275 | P16: =N16/N15-1 -> 0.0369253988
A17: =A16+1 -> 2017 | B17: =B16*(1+$D$10) -> 1407467.395 | C17: =B17-B16 -> 14425.36331 | E17: 0.5387176189 | F17: =F16*(1+$H$10) -> 743304.9688 | G17: =F17-F16 -> 3292.608834 | I17: 0.2845049799 | J17: =J16+K17 -> 353232.1667 | K17: 30000 | L17: =K17/J16 -> 0.09281254496 | M17: 0.1352019894 | N17: =N16*(1+$P$10) -> 2612625.512 | O17: =N17-N16 -> 93036.81736 | P17: =N17/N16-1 -> 0.0369253988
A18: =A17+1 -> 2018 | B18: =B17*(1+$D$10) -> 1422042.137 | C18: =B18-B17 -> 14574.74222 | E18: 0.5249135571 | F18: =F17*(1+$H$10) -> 746612.2277 | G18: =F18-F17 -> 3307.258958 | I18: 0.2755944216 | J18: =J17+K18 -> 382232.1667 | K18: 29000 | L18: =K18/J17 -> 0.08209897834 | M18: 0.1410920542 | N18: =N17*(1+$P$10) -> 2709097.751 | O18: =N18-N17 -> 96472.23894 | P18: =N18/N17-1 -> 0.0369253988
A19: =A18+1 -> 2019 | B19: =B18*(1+$D$10) -> 1436767.805 | C19: =B19-B18 -> 14725.668 | E19: 0.5114632097 | F19: =F18*(1+$H$10) -> 749934.202 | G19: =F19-F18 -> 3321.974266 | I19: 0.2669629377 | J19: =J18+K19 -> 409232.1667 | K19: 27000 | L19: =K19/J18 -> 0.07063769707 | M19: 0.1456792091 | N19: =N18*(1+$P$10) -> 2809132.266 | O19: =N19-N18 -> 100034.5148 | P19: =N19/N18-1 -> 0.0369253988
A20: =A19+1 -> 2020 | B20: =B19*(1+$D$10) -> 1451645.962 | C20: =B20-B19 -> 14878.15666 | E20: 0.498357513 | F20: =F19*(1+$H$10) -> 753270.957 | G20: =F20-F19 -> 3336.755049 | I20: 0.2586017876 | J20: =J19+K20 -> 434232.1667 | K20: 25000 | L20: =K20/J19 -> 0.06109001695 | M20: 0.1490741326 | N20: =N19*(1+$P$10) -> 2912860.595 | O20: =N20-N19 -> 103728.3292 | P20: =N20/N19-1 -> 0.0369253988
A22: * no churn incorporated on the basis that as customers churn
B23: The exit fee will recover return of assets
B24: the rest of the opex costs will disappear as the meter is removed
B25: thus as meters move revenue will decrease but costs will decrease on a proportional basis.
A27: Actual Average NTC's
A28: EndFinancial Year | B28: Primary | C28: Growth | D28: % Growth | E28: % | F28: CL | G28: Growth | H28: % Growth | I28: % | J28: FiT | K28: Growth | L28: % Growth | M28: % | N28: Total | O28: Growth | P28: % Growth
A29: 2012 Closing | B29: =GETPIVOTDATA("NMI No",'PIVOT NMI''s'!$A$3,"Group","SAC - Non Demand","MONTH","JUN","FIN YEAR","1112") -> 1343590 | E29: =IF($N29=0,0,B29/$N29) -> 0.6050176855 | F29: =GETPIVOTDATA("NMI No",'PIVOT NMI''s'!$A$3,"Group","CL","MONTH","JUN","FIN YEAR","1112") -> 728844 | I29: =IF($N29=0,0,F29/$N29) -> 0.3281979696 | J29: =GETPIVOTDATA("NMI No",'PIVOT NMI''s'!$A$3,"Group","Photovoltaic","MONTH","JUN","FIN YEAR","1112") -> 148311 | M29: =IF($N29=0,0,J29/$N29) -> 0.06678434489 | N29: =J29+F29+B29 -> 2220745
A30: 2013 Closing | B30: =GETPIVOTDATA("NMI No",'PIVOT NMI''s'!$A$3,"Group","SAC - Non Demand","MONTH","JUN","FIN YEAR","1213") -> 1356079 | C30: =B30-B29 -> 12489 | D30: =C30/B29 -> 0.009295246318 | E30: =IF($N30=0,0,B30/$N30) -> 0.5870085605 | F30: =GETPIVOTDATA("NMI No",'PIVOT NMI''s'!$A$3,"Group","CL","MONTH","JUN","FIN YEAR","1213") -> 731862 | G30: =F30-F29 -> 3018 | H30: =G30/F29 -> 0.004140803793 | I30: =IF($N30=0,0,F30/$N30) -> 0.3168025307 | J30: =GETPIVOTDATA("NMI No",'PIVOT NMI''s'!$A$3,"Group","Photovoltaic","MONTH","JUN","FIN YEAR","1213") -> 222211 | K30: =J30-J29 -> 73900 | L30: =K30/J29 -> 0.4982772687 | M30: =IF($N30=0,0,J30/$N30) -> 0.09618890878 | N30: =J30+F30+B30 -> 2310152 | O30: =N30-N29 -> 89407 | P30: =O30/N29 -> 0.04025991278
A31: 2014 Closing | B31: =GETPIVOTDATA("NMI No",'PIVOT NMI''s'!$A$3,"Group","SAC - Non Demand","MONTH","JUN","FIN YEAR","1314") -> 1372607 | C31: =B31-B30 -> 16528 | D31: =C31/B30 -> 0.01218808049 | E31: =IF($N31=0,0,B31/$N31) -> 0.5796766227 | F31: =GETPIVOTDATA("NMI No",'PIVOT NMI''s'!$A$3,"Group","CL","MONTH","JUN","FIN YEAR","1314") -> 734274 | G31: =F31-F30 -> 2412 | H31: =G31/F30 -> 0.003295703288 | I31: =IF($N31=0,0,F31/$N31) -> 0.3100971162 | J31: =GETPIVOTDATA("NMI No",'PIVOT NMI''s'!$A$3,"Group","Photovoltaic","MONTH","JUN","FIN YEAR","1314") -> 261003 | K31: =J31-J30 -> 38792 | L31: =K31/J30 -> 0.1745728159 | M31: =IF($N31=0,0,J31/$N31) -> 0.1102262611 | N31: =J31+F31+B31 -> 2367884 | O31: =N31-N30 -> 57732 | P31: =O31/N30 -> 0.02499056339
A34: Average growth | D34: =AVERAGE(D29:D32) -> 0.0107416634 | E34: =AVERAGE(E29:E32) -> 0.5905676229 | H34: =AVERAGE(H29:H32) -> 0.003718253541 | I34: =AVERAGE(I29:I32) -> 0.3183658722 | L34: =AVERAGE(L29:L32) -> 0.3364250423 | M34: =AVERAGE(M29:M32) -> 0.09106650492 | P34: =AVERAGE(P29:P32) -> 0.03262523808
A36: Forecast NTCs
A37: End Financial Year | B37: Primary | C37: Growth | D37: % Growth | E37: % | F37: CL | G37: Growth | H37: % Growth | I37: % | J37: FiT | K37: Growth | L37: % Growth | M37: % | N37: Total | P37: check
A38: 2015 | B38: =B31*(1+D34) -> 1387351.082 | C38: =B38-B31 -> 14744.08238 | D38: =C38/B31 -> 0.0107416634 | E38: =B38/N38 -> 0.5713123483 | F38: =F31*(1+H34) -> 737004.2169 | G38: =F38-F31 -> 2730.2169 | H38: =G38/F31 -> 0.003718253541 | I38: =F38/N38 -> 0.3034989594 | J38: =J31+K38 -> 304003 | K38: 43000 | L38: =K38/J31 -> 0.1647490642 | M38: =J38/N38 -> 0.1251886923 | N38: =B38+F38+J38 -> 2428358.299 | P38: =N38/N31-1 -> 0.02553938423
A39: =A38+1 -> 2016 | B39: =B38*(1+$D$34) -> 1402253.541 | C39: =B39-B38 -> 14902.45835 | E39: 0.5651966563 | F39: =F38*(1+$H$34) -> 739744.5854 | G39: =F39-F38 -> 2740.368539 | I39: 0.2981637443 | J39: =J38+K39 -> 339003 | K39: 35000 | M39: 0.1366395994 | N39: 2481001.126 | P39: =N39/N38-1 -> 0.0216783606
A40: =A39+1 -> 2017 | B40: =B39*(1+$D$34) -> 1417316.076 | C40: =B40-B39 -> 15062.53554 | E40: 0.5604666667 | F40: =F39*(1+$H$34) -> 742495.1434 | G40: =F40-F39 -> 2750.557924 | I40: 0.2936139546 | J40: =J39+K40 -> 369003 | K40: 30000 | M40: 0.1459193788 | N40: 2528814.22 | P40: =N40/N39-1 -> 0.01927169358
A41: =A40+1 -> 2018 | B41: =B40*(1+$D$34) -> 1432540.408 | C41: =B41-B40 -> 15224.33223 | E41: 0.5561537298 | F41: =F40*(1+$H$34) -> 745255.9286 | G41: =F41-F40 -> 2760.785196 | I41: 0.2893299637 | J41: =J40+K41 -> 398003 | K41: 29000 | M41: 0.1545163066 | N41: 2575799.337 | P41: =N41/N40-1 -> 0.01857990083
A42: =A41+1 -> 2019 | B42: =B41*(1+$D$34) -> 1447928.275 | C42: =B42-B41 -> 15387.86688 | E42: 0.5524423264 | F42: =F41*(1+$H$34) -> 748026.9791 | G42: =F42-F41 -> 2771.050495 | I42: 0.2854020959 | J42: =J41+K42 -> 425003 | K42: 27000 | M42: 0.1621555777 | N42: 2620958.254 | P42: =N42/N41-1 -> 0.01753200132
A43: =A42+1 -> 2020 | B43: =B42*(1+$D$34) -> 1463481.434 | C43: =B43-B42 -> 15553.15817 | E43: 0.5492945265 | F43: =F42*(1+$H$34) -> 750808.333 | G43: =F43-F42 -> 2781.353964 | I43: 0.2818039903 | J43: =J42+K43 -> 450003 | K43: 25000 | M43: 0.1689014832 | N43: 2664292.767 | P43: =N43/N42-1 -> 0.01653384294
A45: Forecast NTCs
A46: Average | B46: Primary | C46: Growth | D46: % Growth | E46: % | F46: CL | G46: Growth | H46: % Growth | I46: % | J46: FiT | K46: Growth | L46: % Growth | M46: % | N46: Total | P46: check
A47: 2015 | B47: =(B38-B31)/2+B31 -> 1379979.041 | E47: =B47/N47 -> 0.5262693207 | F47: =(F38-F31)/2+F31 -> 735639.1085 | I47: =F47/N47 -> 0.2805436042 | J47: =(J38-J31)/2+J31 -> 282503 | M47: =J47/N47 -> 0.1077354492 | N47: =N40*(1+$P$10) -> 2622191.693 | P47: =N47/N40-1 -> 0.0369253988
A48: =A47+1 -> 2016 | B48: =(B39-B38)/2+B38 -> 1394802.312 | C48: =B48-B47 -> 14823.27036 | D48: =C48/B47 -> 0.0107416634 | E48: 0.5129803255 | F48: =(F39-F38)/2+F38 -> 738374.4012 | G48: =F48-F47 -> 2735.29272 | H48: =G48/F47 -> 0.003718253541 | I48: 0.2715593009 | J48: =(J39-J38)/2+J38 -> 321503 | K48: =J48-J47 -> 39000 | L48: =K48/J47 -> 0.1380516313 | M48: 0.1182423575 | N48: =N47*(1+$P$10) -> 2719017.167 | P48: =N48/N47-1 -> 0.0369253988
A49: =A48+1 -> 2017 | B49: =(B40-B39)/2+B39 -> 1409784.808 | C49: =B49-B48 -> 14982.49694 | E49: 0.500026895 | F49: =(F40-F39)/2+F39 -> 741119.8644 | G49: =F49-F48 -> 2745.463232 | I49: 0.2628627166 | J49: =(J40-J39)/2+J39 -> 354003 | K49: =J49-J48 -> 32500 | M49: 0.1255588937 | N49: =N48*(1+$P$10) -> 2819417.96 | P49: =N49/N48-1 -> 0.0369253988
A50: =A49+1 -> 2018 | B50: =(B41-B40)/2+B40 -> 1424928.242 | C50: =B50-B49 -> 15143.43388 | E50: 0.4874005557 | F50: =(F41-F40)/2+F40 -> 743875.536 | G50: =F50-F49 -> 2755.67156 | I50: 0.2544446372 | J50: =(J41-J40)/2+J40 -> 383503 | K50: =J50-J49 -> 29500 | M50: 0.1311782374 | N50: =N49*(1+$P$10) -> 2923526.093 | P50: =N50/N49-1 -> 0.0369253988
A51: =A50+1 -> 2019 | B51: =(B42-B41)/2+B41 -> 1440234.342 | C51: =B51-B50 -> 15306.09955 | E51: 0.4750930482 | F51: =(F42-F41)/2+F41 -> 746641.4538 | G51: =F51-F50 -> 2765.917846 | I51: 0.2462961435 | J51: =(J42-J41)/2+J41 -> 411503 | K51: =J51-J50 -> 28000 | M51: 0.1357433363 | N51: =N50*(1+$P$10) -> 3031478.46 | P51: =N51/N50-1 -> 0.0369253988
A52: =A51+1 -> 2020 | B52: =(B43-B42)/2+B42 -> 1455704.854 | C52: =B52-B51 -> 15470.51252 | E52: 0.4630963214 | F52: =(F43-F42)/2+F42 -> 749417.656 | G52: =F52-F51 -> 2776.202229 | I52: 0.2384086023 | J52: =(J43-J42)/2+J42 -> 437503 | K52: =J52-J51 -> 26000 | M52: 0.1391807064 | N52: =N51*(1+$P$10) -> 3143417.011 | P52: =N52/N51-1 -> 0.0369253988

Sheet PIVOT NMI's
A3: Sum of NMI No | B3: Column Labels
B4: Photovoltaic | C4: SAC - Non Demand | H4: SAC - Non Demand Total | I4: CL | K4: CL Total | L4: Grand Total
A5: Row Labels | C5: 7600 | D5: 8400 | E5: 8500 | F5: 8800 | G5: 8900 | I5: 9000 | J5: 9100
A6: 1112
A7: JUL | B7: 83543 | D7: 1216105 | E7: 98961 | F7: 15162 | H7: 1330228 | I7: 214689 | J7: 511181 | K7: 725870 | L7: 2139641
A8: AUG | B8: 91647 | D8: 1217679 | E8: 99002 | F8: 15111 | H8: 1331792 | I8: 214449 | J8: 511537 | K8: 725986 | L8: 2149425
A9: SEP | B9: 98076 | D9: 1218940 | E9: 99110 | F9: 15041 | H9: 1333091 | I9: 214234 | J9: 511922 | K9: 726156 | L9: 2157323
A10: OCT | B10: 106435 | D10: 1219720 | E10: 99166 | F10: 15043 | H10: 1333929 | I10: 214132 | J10: 512119 | K10: 726251 | L10: 2166615
A11: NOV | B11: 110735 | D11: 1221304 | E11: 99162 | F11: 15023 | H11: 1335489 | I11: 214052 | J11: 512451 | K11: 726503 | L11: 2172727
A12: DEC | B12: 113788 | D12: 1222025 | E12: 99119 | F12: 15008 | H12: 1336152 | I12: 213957 | J12: 512703 | K12: 726660 | L12: 2176600
A13: JAN | B13: 117616 | D13: 1222681 | E13: 99136 | F13: 14990 | H13: 1336807 | I13: 213911 | J13: 512959 | K13: 726870 | L13: 2181293
A14: FEB | B14: 121452 | D14: 1223975 | E14: 99252 | F14: 14926 | H14: 1338153 | I14: 213784 | J14: 513257 | K14: 727041 | L14: 2186646
A15: MAR | B15: 126377 | D15: 1225179 | E15: 99303 | F15: 14923 | H15: 1339405 | I15: 213725 | J15: 513739 | K15: 727464 | L15: 2193246
A16: APR | B16: 131241 | D16: 1226357 | E16: 99302 | F16: 14918 | H16: 1340577 | I16: 213671 | J16: 514062 | K16: 727733 | L16: 2199551
A17: MAY | B17: 139584 | D17: 1228204 | E17: 99322 | F17: 14912 | H17: 1342438 | I17: 213679 | J17: 514792 | K17: 728471 | L17: 2210493
A18: JUN | B18: 148311 | D18: 1229433 | E18: 99320 | F18: 14837 | H18: 1343590 | I18: 213524 | J18: 515320 | K18: 728844 | L18: 2220745
A19: 1213
A20: JUL | B20: 157849 | D20: 1230924 | E20: 98438 | F20: 14268 | G20: 1 | H20: 1343631 | I20: 213302 | J20: 515838 | K20: 729140 | L20: 2230620
A21: AUG | B21: 167385 | D21: 1232077 | E21: 98364 | F21: 14231 | G21: 2 | H21: 1344674 | I21: 213229 | J21: 516314 | K21: 729543 | L21: 2241602
A22: SEP | B22: 175458 | D22: 1232973 | E22: 98327 | F22: 14188 | G22: 3 | H22: 1345491 | I22: 213202 | J22: 516612 | K22: 729814 | L22: 2250763
A23: OCT | B23: 184155 | D23: 1234598 | E23: 98717 | F23: 14486 | G23: 5 | H23: 1347806 | I23: 213270 | J23: 516871 | K23: 730141 | L23: 2262102
A24: NOV | B24: 192007 | D24: 1235911 | E24: 98755 | F24: 14512 | G24: 9 | H24: 1349187 | I24: 213363 | J24: 517103 | K24: 730466 | L24: 2271660
A25: DEC | B25: 197320 | D25: 1237019 | E25: 98800 | F25: 14530 | G25: 11 | H25: 1350360 | I25: 213452 | J25: 517439 | K25: 730891 | L25: 2278571
A26: JAN | B26: 202555 | D26: 1237334 | E26: 98795 | F26: 14529 | G26: 17 | H26: 1350675 | I26: 213491 | J26: 517516 | K26: 731007 | L26: 2284237
A27: FEB | B27: 206666 | D27: 1238302 | E27: 98816 | F27: 14551 | G27: 20 | H27: 1351689 | I27: 213481 | J27: 517574 | K27: 731055 | L27: 2289410
A28: MAR | B28: 209574 | D28: 1239110 | E28: 98832 | F28: 14542 | G28: 21 | H28: 1352505 | I28: 213522 | J28: 517689 | K28: 731211 | L28: 2293290
A29: APR | B29: 212687 | D29: 1240086 | E29: 98821 | F29: 14550 | G29: 25 | H29: 1353482 | I29: 213539 | J29: 517844 | K29: 731383 | L29: 2297552
A30: MAY | B30: 218035 | D30: 1241451 | E30: 98830 | F30: 14551 | G30: 95 | H30: 1354927 | I30: 213573 | J30: 518060 | K30: 731633 | L30: 2304595
A31: JUN | B31: 222211 | D31: 1242547 | E31: 98884 | F31: 14552 | G31: 96 | H31: 1356079 | I31: 213508 | J31: 518354 | K31: 731862 | L31: 2310152
A32: 1314
A33: JUL | B33: 228856 | D33: 1243991 | E33: 98903 | F33: 14524 | G33: 100 | H33: 1357518 | I33: 213473 | J33: 518744 | K33: 732217 | L33: 2318591
A34: AUG | B34: 233821 | D34: 1245430 | E34: 98922 | F34: 14426 | G34: 105 | H34: 1358883 | I34: 213521 | J34: 518984 | K34: 732505 | L34: 2325209
A35: SEP | B35: 236565 | D35: 1246737 | E35: 98978 | F35: 14417 | G35: 116 | H35: 1360248 | I35: 213612 | J35: 519177 | K35: 732789 | L35: 2329602
A36: OCT | B36: 239135 | C36: 1 | D36: 1248082 | E36: 99050 | F36: 14420 | G36: 130 | H36: 1361683 | I36: 213743 | J36: 519323 | K36: 733066 | L36: 2333884
A37: NOV | B37: 241389 | C37: 1 | D37: 1249149 | E37: 99080 | F37: 14411 | G37: 138 | H37: 1362779 | I37: 213933 | J37: 519347 | K37: 733280 | L37: 2337448
A38: DEC | B38: 243867 | C38: 1 | D38: 1250422 | E38: 99124 | F38: 14405 | G38: 141 | H38: 1364093 | I38: 214139 | J38: 519427 | K38: 733566 | L38: 2341526
A39: JAN | B39: 245970 | C39: 1 | D39: 1250784 | E39: 99106 | F39: 14439 | G39: 144 | H39: 1364474 | I39: 214266 | J39: 519414 | K39: 733680 | L39: 2344124
A40: FEB | B40: 248326 | D40: 1252178 | E40: 99111 | F40: 14474 | G40: 154 | H40: 1365917 | I40: 214453 | J40: 519485 | K40: 733938 | L40: 2348181
A41: MAR | B41: 251568 | D41: 1253626 | E41: 99145 | F41: 14505 | G41: 160 | H41: 1367436 | I41: 214576 | J41: 519429 | K41: 734005 | L41: 2353009
A42: APR | B42: 254310 | D42: 1255163 | E42: 99169 | F42: 14511 | G42: 162 | H42: 1369005 | I42: 214662 | J42: 519442 | K42: 734104 | L42: 2357419
A43: MAY | B43: 257976 | D43: 1257135 | E43: 99137 | F43: 14516 | G43: 169 | H43: 1370957 | I43: 214712 | J43: 519514 | K43: 734226 | L43: 2363159
A44: JUN | B44: 261003 | D44: 1258812 | E44: 99137 | F44: 14483 | G44: 175 | H44: 1372607 | I44: 214761 | J44: 519513 | K44: 734274 | L44: 2367884
A45: Grand Total | B45: 6677493 | C45: 4 | D45: 44525443 | E45: 3563396 | F45: 526915 | G45: 1999 | H45: 48617757 | I45: 7698590 | J45: 18595055 | K45: 26293645 | L45: 81588895

Sheet NMIs Per NTC
A1: NTC | B1: NTC Desc | C1: Group | D1: Category | E1: Date | F1: MONTH | G1: YEAR | H1: FIN YEAR | I1: NMI No
A2: 7500 | B2: 7500 - Solar PV 2 (net with FIT) | C2: Photovoltaic | D2: FIXED | E2: 2012-08-31 | F2: AUG | G2: 2012 | H2: 1213 | I2: 10
A3: 7500 | B3: 7500 - Solar PV 2 (net with FIT) | C3: Photovoltaic | D3: FIXED | E3: 2012-09-30 | F3: SEP | G3: 2012 | H3: 1213 | I3: 193
A4: 7500 | B4: 7500 - Solar PV 2 (net with FIT) | C4: Photovoltaic | D4: FIXED | E4: 2012-10-31 | F4: OCT | G4: 2012 | H4: 1213 | I4: 844
A5: 7500 | B5: 7500 - Solar PV 2 (net with FIT) | C5: Photovoltaic | D5: FIXED | E5: 2012-11-30 | F5: NOV | G5: 2012 | H5: 1213 | I5: 2031
A6: 7500 | B6: 7500 - Solar PV 2 (net with FIT) | C6: Photovoltaic | D6: FIXED | E6: 2012-12-31 | F6: DEC | G6: 2012 | H6: 1213 | I6: 4515
A7: 7500 | B7: 7500 - Solar PV 2 (net with FIT) | C7: Photovoltaic | D7: FIXED | E7: 2013-01-31 | F7: JAN | G7: 2013 | H7: 1213 | I7: 7027
A8: 7500 | B8: 7500 - Solar PV 2 (net with FIT) | C8: Photovoltaic | D8: FIXED | E8: 2013-02-28 | F8: FEB | G8: 2013 | H8: 1213 | I8: 9322
A9: 7500 | B9: 7500 - Solar PV 2 (net with FIT) | C9: Photovoltaic | D9: FIXED | E9: 2013-03-31 | F9: MAR | G9: 2013 | H9: 1213 | I9: 11301
A10: 7500 | B10: 7500 - Solar PV 2 (net with FIT) | C10: Photovoltaic | D10: FIXED | E10: 2013-04-30 | F10: APR | G10: 2013 | H10: 1213 | I10: 13462
A11: 7500 | B11: 7500 - Solar PV 2 (net with FIT) | C11: Photovoltaic | D11: FIXED | E11: 2013-05-31 | F11: MAY | G11: 2013 | H11: 1213 | I11: 16823
A12: 7500 | B12: 7500 - Solar PV 2 (net with FIT) | C12: Photovoltaic | D12: FIXED | E12: 2013-06-30 | F12: JUN | G12: 2013 | H12: 1213 | I12: 19027
A13: 7500 | B13: 7500 - Solar PV 2 (net with FIT) | C13: Photovoltaic | D13: FIXED | E13: 2013-07-31 | F13: JUL | G13: 2013 | H13: 1314 | I13: 21589
A14: 7500 | B14: 7500 - Solar PV 2 (net with FIT) | C14: Photovoltaic | D14: FIXED | E14: 2013-08-31 | F14: AUG | G14: 2013 | H14: 1314 | I14: 25871
A15: 7500 | B15: 7500 - Solar PV 2 (net with FIT) | C15: Photovoltaic | D15: FIXED | E15: 2013-09-30 | F15: SEP | G15: 2013 | H15: 1314 | I15: 28990
A16: 7500 | B16: 7500 - Solar PV 2 (net with FIT) | C16: Photovoltaic | D16: FIXED | E16: 2013-10-31 | F16: OCT | G16: 2013 | H16: 1314 | I16: 32198
A17: 7500 | B17: 7500 - Solar PV 2 (net with FIT) | C17: Photovoltaic | D17: FIXED | E17: 2013-11-30 | F17: NOV | G17: 2013 | H17: 1314 | I17: 35164
A18: 7500 | B18: 7500 - Solar PV 2 (net with FIT) | C18: Photovoltaic | D18: FIXED | E18: 2013-12-31 | F18: DEC | G18: 2013 | H18: 1314 | I18: 38377
A19: 7500 | B19: 7500 - Solar PV 2 (net with FIT) | C19: Photovoltaic | D19: FIXED | E19: 2014-01-31 | F19: JAN | G19: 2014 | H19: 1314 | I19: 41099
A20: 7500 | B20: 7500 - Solar PV 2 (net with FIT) | C20: Photovoltaic | D20: FIXED | E20: 2014-02-28 | F20: FEB | G20: 2014 | H20: 1314 | I20: 44030
A21: 7500 | B21: 7500 - Solar PV 2 (net with FIT) | C21: Photovoltaic | D21: FIXED | E21: 2014-03-31 | F21: MAR | G21: 2014 | H21: 1314 | I21: 47974
A22: 7500 | B22: 7500 - Solar PV 2 (net with FIT) | C22: Photovoltaic | D22: FIXED | E22: 2014-04-30 | F22: APR | G22: 2014 | H22: 1314 | I22: 51363
A23: 7500 | B23: 7500 - Solar PV 2 (net with FIT) | C23: Photovoltaic | D23: FIXED | E23: 2014-05-31 | F23: MAY | G23: 2014 | H23: 1314 | I23: 55737
A24: 7500 | B24: 7500 - Solar PV 2 (net with FIT) | C24: Photovoltaic | D24: FIXED | E24: 2014-06-30 | F24: JUN | G24: 2014 | H24: 1314 | I24: 59308
A25: 7600 | B25: 7600 - Residential - PeakSmart | C25: SAC - Non Demand | D25: FIXED | E25: 2013-07-31 | F25: JUL | G25: 2013 | H25: 1314
A26: 7600 | B26: 7600 - Residential - PeakSmart | C26: SAC - Non Demand | D26: FIXED | E26: 2013-08-31 | F26: AUG | G26: 2013 | H26: 1314
A27: 7600 | B27: 7600 - Residential - PeakSmart | C27: SAC - Non Demand | D27: FIXED | E27: 2013-09-30 | F27: SEP | G27: 2013 | H27: 1314
A28: 7600 | B28: 7600 - Residential - PeakSmart | C28: SAC - Non Demand | D28: FIXED | E28: 2013-10-31 | F28: OCT | G28: 2013 | H28: 1314 | I28: 1
A29: 7600 | B29: 7600 - Residential - PeakSmart | C29: SAC - Non Demand | D29: FIXED | E29: 2013-11-30 | F29: NOV | G29: 2013 | H29: 1314 | I29: 1
A30: 7600 | B30: 7600 - Residential - PeakSmart | C30: SAC - Non Demand | D30: FIXED | E30: 2013-12-31 | F30: DEC | G30: 2013 | H30: 1314 | I30: 1
A31: 7600 | B31: 7600 - Residential - PeakSmart | C31: SAC - Non Demand | D31: FIXED | E31: 2014-01-31 | F31: JAN | G31: 2014 | H31: 1314 | I31: 1
A32: 7600 | B32: 7600 - Residential - PeakSmart | C32: SAC - Non Demand | D32: FIXED | E32: 2014-02-28 | F32: FEB | G32: 2014 | H32: 1314
A33: 7600 | B33: 7600 - Residential - PeakSmart | C33: SAC - Non Demand | D33: FIXED | E33: 2014-03-31 | F33: MAR | G33: 2014 | H33: 1314
A34: 7600 | B34: 7600 - Residential - PeakSmart | C34: SAC - Non Demand | D34: FIXED | E34: 2014-04-30 | F34: APR | G34: 2014 | H34: 1314
A35: 7600 | B35: 7600 - Residential - PeakSmart | C35: SAC - Non Demand | D35: FIXED | E35: 2014-05-31 | F35: MAY | G35: 2014 | H35: 1314
A36: 7600 | B36: 7600 - Residential - PeakSmart | C36: SAC - Non Demand | D36: FIXED | E36: 2014-06-30 | F36: JUN | G36: 2014 | H36: 1314
A37: 8300 | B37: 8300 - Demand Small | C37: SAC - Demand | D37: FIXED | E37: 2011-07-31 | F37: JUL | G37: 2011 | H37: 1112 | I37: 5231
A38: 8300 | B38: 8300 - Demand Small | C38: SAC - Demand | D38: FIXED | E38: 2011-08-31 | F38: AUG | G38: 2011 | H38: 1112 | I38: 5356
A39: 8300 | B39: 8300 - Demand Small | C39: SAC - Demand | D39: FIXED | E39: 2011-09-30 | F39: SEP | G39: 2011 | H39: 1112 | I39: 5398
A40: 8300 | B40: 8300 - Demand Small | C40: SAC - Demand | D40: FIXED | E40: 2011-10-31 | F40: OCT | G40: 2011 | H40: 1112 | I40: 5529
A41: 8300 | B41: 8300 - Demand Small | C41: SAC - Demand | D41: FIXED | E41: 2011-11-30 | F41: NOV | G41: 2011 | H41: 1112 | I41: 5554
A42: 8300 | B42: 8300 - Demand Small | C42: SAC - Demand | D42: FIXED | E42: 2011-12-31 | F42: DEC | G42: 2011 | H42: 1112 | I42: 5799
A43: 8300 | B43: 8300 - Demand Small | C43: SAC - Demand | D43: FIXED | E43: 2012-01-31 | F43: JAN | G43: 2012 | H43: 1112 | I43: 6343
A44: 8300 | B44: 8300 - Demand Small | C44: SAC - Demand | D44: FIXED | E44: 2012-02-29 | F44: FEB | G44: 2012 | H44: 1112 | I44: 6363
A45: 8300 | B45: 8300 - Demand Small | C45: SAC - Demand | D45: FIXED | E45: 2012-03-31 | F45: MAR | G45: 2012 | H45: 1112 | I45: 6372
A46: 8300 | B46: 8300 - Demand Small | C46: SAC - Demand | D46: FIXED | E46: 2012-04-30 | F46: APR | G46: 2012 | H46: 1112 | I46: 6401
A47: 8300 | B47: 8300 - Demand Small | C47: SAC - Demand | D47: FIXED | E47: 2012-05-31 | F47: MAY | G47: 2012 | H47: 1112 | I47: 6441
A48: 8300 | B48: 8300 - Demand Small | C48: SAC - Demand | D48: FIXED | E48: 2012-06-30 | F48: JUN | G48: 2012 | H48: 1112 | I48: 6596
A49: 8300 | B49: 8300 - Demand Small | C49: SAC - Demand | D49: FIXED | E49: 2012-07-31 | F49: JUL | G49: 2012 | H49: 1213 | I49: 9149
A50: 8300 | B50: 8300 - Demand Small | C50: SAC - Demand | D50: FIXED | E50: 2012-08-31 | F50: AUG | G50: 2012 | H50: 1213 | I50: 9264
A51: 8300 | B51: 8300 - Demand Small | C51: SAC - Demand | D51: FIXED | E51: 2012-09-30 | F51: SEP | G51: 2012 | H51: 1213 | I51: 9289
A52: 8300 | B52: 8300 - Demand Small | C52: SAC - Demand | D52: FIXED | E52: 2012-10-31 | F52: OCT | G52: 2012 | H52: 1213 | I52: 8629
A53: 8300 | B53: 8300 - Demand Small | C53: SAC - Demand | D53: FIXED | E53: 2012-11-30 | F53: NOV | G53: 2012 | H53: 1213 | I53: 8598
A54: 8300 | B54: 8300 - Demand Small | C54: SAC - Demand | D54: FIXED | E54: 2012-12-31 | F54: DEC | G54: 2012 | H54: 1213 | I54: 8587
A55: 8300 | B55: 8300 - Demand Small | C55: SAC - Demand | D55: FIXED | E55: 2013-01-31 | F55: JAN | G55: 2013 | H55: 1213 | I55: 8592
A56: 8300 | B56: 8300 - Demand Small | C56: SAC - Demand | D56: FIXED | E56: 2013-02-28 | F56: FEB | G56: 2013 | H56: 1213 | I56: 8581
A57: 8300 | B57: 8300 - Demand Small | C57: SAC - Demand | D57: FIXED | E57: 2013-03-31 | F57: MAR | G57: 2013 | H57: 1213 | I57: 8583
A58: 8300 | B58: 8300 - Demand Small | C58: SAC - Demand | D58: FIXED | E58: 2013-04-30 | F58: APR | G58: 2013 | H58: 1213 | I58: 8580
A59: 8300 | B59: 8300 - Demand Small | C59: SAC - Demand | D59: FIXED | E59: 2013-05-31 | F59: MAY | G59: 2013 | H59: 1213 | I59: 8583
A60: 8300 | B60: 8300 - Demand Small | C60: SAC - Demand | D60: FIXED | E60: 2013-06-30 | F60: JUN | G60: 2013 | H60: 1213 | I60: 8579
A61: 8300 | B61: 8300 - Demand Small | C61: SAC - Demand | D61: FIXED | E61: 2013-07-31 | F61: JUL | G61: 2013 | H61: 1314 | I61: 8590
A62: 8300 | B62: 8300 - Demand Small | C62: SAC - Demand | D62: FIXED | E62: 2013-08-31 | F62: AUG | G62: 2013 | H62: 1314 | I62: 8787
A63: 8300 | B63: 8300 - Demand Small | C63: SAC - Demand | D63: FIXED | E63: 2013-09-30 | F63: SEP | G63: 2013 | H63: 1314 | I63: 8783
A64: 8300 | B64: 8300 - Demand Small | C64: SAC - Demand | D64: FIXED | E64: 2013-10-31 | F64: OCT | G64: 2013 | H64: 1314 | I64: 8784
A65: 8300 | B65: 8300 - Demand Small | C65: SAC - Demand | D65: FIXED | E65: 2013-11-30 | F65: NOV | G65: 2013 | H65: 1314 | I65: 8804
A66: 8300 | B66: 8300 - Demand Small | C66: SAC - Demand | D66: FIXED | E66: 2013-12-31 | F66: DEC | G66: 2013 | H66: 1314 | I66: 8820
A67: 8300 | B67: 8300 - Demand Small | C67: SAC - Demand | D67: FIXED | E67: 2014-01-31 | F67: JAN | G67: 2014 | H67: 1314 | I67: 8830
A68: 8300 | B68: 8300 - Demand Small | C68: SAC - Demand | D68: FIXED | E68: 2014-02-28 | F68: FEB | G68: 2014 | H68: 1314 | I68: 8847
A69: 8300 | B69: 8300 - Demand Small | C69: SAC - Demand | D69: FIXED | E69: 2014-03-31 | F69: MAR | G69: 2014 | H69: 1314 | I69: 8854
A70: 8300 | B70: 8300 - Demand Small | C70: SAC - Demand | D70: FIXED | E70: 2014-04-30 | F70: APR | G70: 2014 | H70: 1314 | I70: 8869
A71: 8300 | B71: 8300 - Demand Small | C71: SAC - Demand | D71: FIXED | E71: 2014-05-31 | F71: MAY | G71: 2014 | H71: 1314 | I71: 8915
A72: 8300 | B72: 8300 - Demand Small | C72: SAC - Demand | D72: FIXED | E72: 2014-06-30 | F72: JUN | G72: 2014 | H72: 1314 | I72: 8962
A73: 8400 | B73: 8400 - Residential Flat | C73: SAC - Non Demand | D73: FIXED | E73: 2011-07-31 | F73: JUL | G73: 2011 | H73: 1112 | I73: 1216105
A74: 8400 | B74: 8400 - Residential Flat | C74: SAC - Non Demand | D74: FIXED | E74: 2011-08-31 | F74: AUG | G74: 2011 | H74: 1112 | I74: 1217679
A75: 8400 | B75: 8400 - Residential Flat | C75: SAC - Non Demand | D75: FIXED | E75: 2011-09-30 | F75: SEP | G75: 2011 | H75: 1112 | I75: 1218940
A76: 8400 | B76: 8400 - Residential Flat | C76: SAC - Non Demand | D76: FIXED | E76: 2011-10-31 | F76: OCT | G76: 2011 | H76: 1112 | I76: 1219720
A77: 8400 | B77: 8400 - Residential Flat | C77: SAC - Non Demand | D77: FIXED | E77: 2011-11-30 | F77: NOV | G77: 2011 | H77: 1112 | I77: 1221304
A78: 8400 | B78: 8400 - Residential Flat | C78: SAC - Non Demand | D78: FIXED | E78: 2011-12-31 | F78: DEC | G78: 2011 | H78: 1112 | I78: 1222025
A79: 8400 | B79: 8400 - Residential Flat | C79: SAC - Non Demand | D79: FIXED | E79: 2012-01-31 | F79: JAN | G79: 2012 | H79: 1112 | I79: 1222681
A80: 8400 | B80: 8400 - Residential Flat | C80: SAC - Non Demand | D80: FIXED | E80: 2012-02-29 | F80: FEB | G80: 2012 | H80: 1112 | I80: 1223975
A81: 8400 | B81: 8400 - Residential Flat | C81: SAC - Non Demand | D81: FIXED | E81: 2012-03-31 | F81: MAR | G81: 2012 | H81: 1112 | I81: 1225179
A82: 8400 | B82: 8400 - Residential Flat | C82: SAC - Non Demand | D82: FIXED | E82: 2012-04-30 | F82: APR | G82: 2012 | H82: 1112 | I82: 1226357
A83: 8400 | B83: 8400 - Residential Flat | C83: SAC - Non Demand | D83: FIXED | E83: 2012-05-31 | F83: MAY | G83: 2012 | H83: 1112 | I83: 1228204
A84: 8400 | B84: 8400 - Residential Flat | C84: SAC - Non Demand | D84: FIXED | E84: 2012-06-30 | F84: JUN | G84: 2012 | H84: 1112 | I84: 1229433
A85: 8400 | B85: 8400 - Residential Flat | C85: SAC - Non Demand | D85: FIXED | E85: 2012-07-31 | F85: JUL | G85: 2012 | H85: 1213 | I85: 1230924
A86: 8400 | B86: 8400 - Residential Flat | C86: SAC - Non Demand | D86: FIXED | E86: 2012-08-31 | F86: AUG | G86: 2012 | H86: 1213 | I86: 1232077
A87: 8400 | B87: 8400 - Residential Flat | C87: SAC - Non Demand | D87: FIXED | E87: 2012-09-30 | F87: SEP | G87: 2012 | H87: 1213 | I87: 1232973
A88: 8400 | B88: 8400 - Residential Flat | C88: SAC - Non Demand | D88: FIXED | E88: 2012-10-31 | F88: OCT | G88: 2012 | H88: 1213 | I88: 1234598
A89: 8400 | B89: 8400 - Residential Flat | C89: SAC - Non Demand | D89: FIXED | E89: 2012-11-30 | F89: NOV | G89: 2012 | H89: 1213 | I89: 1235911
A90: 8400 | B90: 8400 - Residential Flat | C90: SAC - Non Demand | D90: FIXED | E90: 2012-12-31 | F90: DEC | G90: 2012 | H90: 1213 | I90: 1237019
A91: 8400 | B91: 8400 - Residential Flat | C91: SAC - Non Demand | D91: FIXED | E91: 2013-01-31 | F91: JAN | G91: 2013 | H91: 1213 | I91: 1237334
A92: 8400 | B92: 8400 - Residential Flat | C92: SAC - Non Demand | D92: FIXED | E92: 2013-02-28 | F92: FEB | G92: 2013 | H92: 1213 | I92: 1238302
A93: 8400 | B93: 8400 - Residential Flat | C93: SAC - Non Demand | D93: FIXED | E93: 2013-03-31 | F93: MAR | G93: 2013 | H93: 1213 | I93: 1239110
A94: 8400 | B94: 8400 - Residential Flat | C94: SAC - Non Demand | D94: FIXED | E94: 2013-04-30 | F94: APR | G94: 2013 | H94: 1213 | I94: 1240086
A95: 8400 | B95: 8400 - Residential Flat | C95: SAC - Non Demand | D95: FIXED | E95: 2013-05-31 | F95: MAY | G95: 2013 | H95: 1213 | I95: 1241451
A96: 8400 | B96: 8400 - Residential Flat | C96: SAC - Non Demand | D96: FIXED | E96: 2013-06-30 | F96: JUN | G96: 2013 | H96: 1213 | I96: 1242547
A97: 8400 | B97: 8400 - Residential Flat | C97: SAC - Non Demand | D97: FIXED | E97: 2013-07-31 | F97: JUL | G97: 2013 | H97: 1314 | I97: 1243991
A98: 8400 | B98: 8400 - Residential Flat | C98: SAC - Non Demand | D98: FIXED | E98: 2013-08-31 | F98: AUG | G98: 2013 | H98: 1314 | I98: 1245430
A99: 8400 | B99: 8400 - Residential Flat | C99: SAC - Non Demand | D99: FIXED | E99: 2013-09-30 | F99: SEP | G99: 2013 | H99: 1314 | I99: 1246737
A100: 8400 | B100: 8400 - Residential Flat | C100: SAC - Non Demand | D100: FIXED | E100: 2013-10-31 | F100: OCT | G100: 2013 | H100: 1314 | I100: 1248082
A101: 8400 | B101: 8400 - Residential Flat | C101: SAC - Non Demand | D101: FIXED | E101: 2013-11-30 | F101: NOV | G101: 2013 | H101: 1314 | I101: 1249149
A102: 8400 | B102: 8400 - Residential Flat | C102: SAC - Non Demand | D102: FIXED | E102: 2013-12-31 | F102: DEC | G102: 2013 | H102: 1314 | I102: 1250422
A103: 8400 | B103: 8400 - Residential Flat | C103: SAC - Non Demand | D103: FIXED | E103: 2014-01-31 | F103: JAN | G103: 2014 | H103: 1314 | I103: 1250784
A104: 8400 | B104: 8400 - Residential Flat | C104: SAC - Non Demand | D104: FIXED | E104: 2014-02-28 | F104: FEB | G104: 2014 | H104: 1314 | I104: 1252178
A105: 8400 | B105: 8400 - Residential Flat | C105: SAC - Non Demand | D105: FIXED | E105: 2014-03-31 | F105: MAR | G105: 2014 | H105: 1314 | I105: 1253626
A106: 8400 | B106: 8400 - Residential Flat | C106: SAC - Non Demand | D106: FIXED | E106: 2014-04-30 | F106: APR | G106: 2014 | H106: 1314 | I106: 1255163
A107: 8400 | B107: 8400 - Residential Flat | C107: SAC - Non Demand | D107: FIXED | E107: 2014-05-31 | F107: MAY | G107: 2014 | H107: 1314 | I107: 1257135
A108: 8400 | B108: 8400 - Residential Flat | C108: SAC - Non Demand | D108: FIXED | E108: 2014-06-30 | F108: JUN | G108: 2014 | H108: 1314 | I108: 1258812
A109: 8500 | B109: 8500 - Business Flat | C109: SAC - Non Demand | D109: FIXED | E109: 2011-07-31 | F109: JUL | G109: 2011 | H109: 1112 | I109: 78182
A110: 8500 | B110: 8500 - Business Flat | C110: SAC - Non Demand | D110: FIXED | E110: 2011-08-31 | F110: AUG | G110: 2011 | H110: 1112 | I110: 79434
A111: 8500 | B111: 8500 - Business Flat | C111: SAC - Non Demand | D111: FIXED | E111: 2011-09-30 | F111: SEP | G111: 2011 | H111: 1112 | I111: 80167
A112: 8500 | B112: 8500 - Business Flat | C112: SAC - Non Demand | D112: FIXED | E112: 2011-10-31 | F112: OCT | G112: 2011 | H112: 1112 | I112: 80799
A113: 8500 | B113: 8500 - Business Flat | C113: SAC - Non Demand | D113: FIXED | E113: 2011-11-30 | F113: NOV | G113: 2011 | H113: 1112 | I113: 80854
A114: 8500 | B114: 8500 - Business Flat | C114: SAC - Non Demand | D114: FIXED | E114: 2011-12-31 | F114: DEC | G114: 2011 | H114: 1112 | I114: 80846
A115: 8500 | B115: 8500 - Business Flat | C115: SAC - Non Demand | D115: FIXED | E115: 2012-01-31 | F115: JAN | G115: 2012 | H115: 1112 | I115: 80885
A116: 8500 | B116: 8500 - Business Flat | C116: SAC - Non Demand | D116: FIXED | E116: 2012-02-29 | F116: FEB | G116: 2012 | H116: 1112 | I116: 81007
A117: 8500 | B117: 8500 - Business Flat | C117: SAC - Non Demand | D117: FIXED | E117: 2012-03-31 | F117: MAR | G117: 2012 | H117: 1112 | I117: 81070
A118: 8500 | B118: 8500 - Business Flat | C118: SAC - Non Demand | D118: FIXED | E118: 2012-04-30 | F118: APR | G118: 2012 | H118: 1112 | I118: 81095
A119: 8500 | B119: 8500 - Business Flat | C119: SAC - Non Demand | D119: FIXED | E119: 2012-05-31 | F119: MAY | G119: 2012 | H119: 1112 | I119: 81142
A120: 8500 | B120: 8500 - Business Flat | C120: SAC - Non Demand | D120: FIXED | E120: 2012-06-30 | F120: JUN | G120: 2012 | H120: 1112 | I120: 81218
A121: 8500 | B121: 8500 - Business Flat | C121: SAC - Non Demand | D121: FIXED | E121: 2012-07-31 | F121: JUL | G121: 2012 | H121: 1213 | I121: 81457
A122: 8500 | B122: 8500 - Business Flat | C122: SAC - Non Demand | D122: FIXED | E122: 2012-08-31 | F122: AUG | G122: 2012 | H122: 1213 | I122: 81523
A123: 8500 | B123: 8500 - Business Flat | C123: SAC - Non Demand | D123: FIXED | E123: 2012-09-30 | F123: SEP | G123: 2012 | H123: 1213 | I123: 81579
A124: 8500 | B124: 8500 - Business Flat | C124: SAC - Non Demand | D124: FIXED | E124: 2012-10-31 | F124: OCT | G124: 2012 | H124: 1213 | I124: 82076
A125: 8500 | B125: 8500 - Business Flat | C125: SAC - Non Demand | D125: FIXED | E125: 2012-11-30 | F125: NOV | G125: 2012 | H125: 1213 | I125: 98608
A126: 8500 | B126: 8500 - Business Flat | C126: SAC - Non Demand | D126: FIXED | E126: 2012-12-31 | F126: DEC | G126: 2012 | H126: 1213 | I126: 98800
A127: 8500 | B127: 8500 - Business Flat | C127: SAC - Non Demand | D127: FIXED | E127: 2013-01-31 | F127: JAN | G127: 2013 | H127: 1213 | I127: 98795
A128: 8500 | B128: 8500 - Business Flat | C128: SAC - Non Demand | D128: FIXED | E128: 2013-02-28 | F128: FEB | G128: 2013 | H128: 1213 | I128: 98816
A129: 8500 | B129: 8500 - Business Flat | C129: SAC - Non Demand | D129: FIXED | E129: 2013-03-31 | F129: MAR | G129: 2013 | H129: 1213 | I129: 98832
A130: 8500 | B130: 8500 - Business Flat | C130: SAC - Non Demand | D130: FIXED | E130: 2013-04-30 | F130: APR | G130: 2013 | H130: 1213 | I130: 98821
A131: 8500 | B131: 8500 - Business Flat | C131: SAC - Non Demand | D131: FIXED | E131: 2013-05-31 | F131: MAY | G131: 2013 | H131: 1213 | I131: 98830
A132: 8500 | B132: 8500 - Business Flat | C132: SAC - Non Demand | D132: FIXED | E132: 2013-06-30 | F132: JUN | G132: 2013 | H132: 1213 | I132: 98884
A133: 8500 | B133: 8500 - Business Flat | C133: SAC - Non Demand | D133: FIXED | E133: 2013-07-31 | F133: JUL | G133: 2013 | H133: 1314 | I133: 98903
A134: 8500 | B134: 8500 - Business Flat | C134: SAC - Non Demand | D134: FIXED | E134: 2013-08-31 | F134: AUG | G134: 2013 | H134: 1314 | I134: 98922
A135: 8500 | B135: 8500 - Business Flat | C135: SAC - Non Demand | D135: FIXED | E135: 2013-09-30 | F135: SEP | G135: 2013 | H135: 1314 | I135: 98978
A136: 8500 | B136: 8500 - Business Flat | C136: SAC - Non Demand | D136: FIXED | E136: 2013-10-31 | F136: OCT | G136: 2013 | H136: 1314 | I136: 99050
A137: 8500 | B137: 8500 - Business Flat | C137: SAC - Non Demand | D137: FIXED | E137: 2013-11-30 | F137: NOV | G137: 2013 | H137: 1314 | I137: 99080
A138: 8500 | B138: 8500 - Business Flat | C138: SAC - Non Demand | D138: FIXED | E138: 2013-12-31 | F138: DEC | G138: 2013 | H138: 1314 | I138: 99124
A139: 8500 | B139: 8500 - Business Flat | C139: SAC - Non Demand | D139: FIXED | E139: 2014-01-31 | F139: JAN | G139: 2014 | H139: 1314 | I139: 99106
A140: 8500 | B140: 8500 - Business Flat | C140: SAC - Non Demand | D140: FIXED | E140: 2014-02-28 | F140: FEB | G140: 2014 | H140: 1314 | I140: 99111
A141: 8500 | B141: 8500 - Business Flat | C141: SAC - Non Demand | D141: FIXED | E141: 2014-03-31 | F141: MAR | G141: 2014 | H141: 1314 | I141: 99145
A142: 8500 | B142: 8500 - Business Flat | C142: SAC - Non Demand | D142: FIXED | E142: 2014-04-30 | F142: APR | G142: 2014 | H142: 1314 | I142: 99169
A143: 8500 | B143: 8500 - Business Flat | C143: SAC - Non Demand | D143: FIXED | E143: 2014-05-31 | F143: MAY | G143: 2014 | H143: 1314 | I143: 99137
A144: 8500 | B144: 8500 - Business Flat | C144: SAC - Non Demand | D144: FIXED | E144: 2014-06-30 | F144: JUN | G144: 2014 | H144: 1314 | I144: 99137
A145: 8500 | B145: 8500 - Business Flat | C145: SAC - Non Demand | D145: FIXED | E145: 2011-07-31 | F145: JUL | G145: 2011 | H145: 1112 | I145: 20779
A146: 8500 | B146: 8500 - Business Flat | C146: SAC - Non Demand | D146: FIXED | E146: 2011-08-31 | F146: AUG | G146: 2011 | H146: 1112 | I146: 19568
A147: 8500 | B147: 8500 - Business Flat | C147: SAC - Non Demand | D147: FIXED | E147: 2011-09-30 | F147: SEP | G147: 2011 | H147: 1112 | I147: 18943
A148: 8500 | B148: 8500 - Business Flat | C148: SAC - Non Demand | D148: FIXED | E148: 2011-10-31 | F148: OCT | G148: 2011 | H148: 1112 | I148: 18367
A149: 8500 | B149: 8500 - Business Flat | C149: SAC - Non Demand | D149: FIXED | E149: 2011-11-30 | F149: NOV | G149: 2011 | H149: 1112 | I149: 18308
A150: 8500 | B150: 8500 - Business Flat | C150: SAC - Non Demand | D150: FIXED | E150: 2011-12-31 | F150: DEC | G150: 2011 | H150: 1112 | I150: 18273
A151: 8500 | B151: 8500 - Business Flat | C151: SAC - Non Demand | D151: FIXED | E151: 2012-01-31 | F151: JAN | G151: 2012 | H151: 1112 | I151: 18251
A152: 8500 | B152: 8500 - Business Flat | C152: SAC - Non Demand | D152: FIXED | E152: 2012-02-29 | F152: FEB | G152: 2012 | H152: 1112 | I152: 18245
A153: 8500 | B153: 8500 - Business Flat | C153: SAC - Non Demand | D153: FIXED | E153: 2012-03-31 | F153: MAR | G153: 2012 | H153: 1112 | I153: 18233
A154: 8500 | B154: 8500 - Business Flat | C154: SAC - Non Demand | D154: FIXED | E154: 2012-04-30 | F154: APR | G154: 2012 | H154: 1112 | I154: 18207
A155: 8500 | B155: 8500 - Business Flat | C155: SAC - Non Demand | D155: FIXED | E155: 2012-05-31 | F155: MAY | G155: 2012 | H155: 1112 | I155: 18180
A156: 8500 | B156: 8500 - Business Flat | C156: SAC - Non Demand | D156: FIXED | E156: 2012-06-30 | F156: JUN | G156: 2012 | H156: 1112 | I156: 18102
A157: 8500 | B157: 8500 - Business Flat | C157: SAC - Non Demand | D157: FIXED | E157: 2012-07-31 | F157: JUL | G157: 2012 | H157: 1213 | I157: 16981
A158: 8500 | B158: 8500 - Business Flat | C158: SAC - Non Demand | D158: FIXED | E158: 2012-08-31 | F158: AUG | G158: 2012 | H158: 1213 | I158: 16841
A159: 8500 | B159: 8500 - Business Flat | C159: SAC - Non Demand | D159: FIXED | E159: 2012-09-30 | F159: SEP | G159: 2012 | H159: 1213 | I159: 16748
A160: 8500 | B160: 8500 - Business Flat | C160: SAC - Non Demand | D160: FIXED | E160: 2012-10-31 | F160: OCT | G160: 2012 | H160: 1213 | I160: 16641
A161: 8500 | B161: 8500 - Business Flat | C161: SAC - Non Demand | D161: FIXED | E161: 2012-11-30 | F161: NOV | G161: 2012 | H161: 1213 | I161: 147
A162: 8500 | B162: 8500 - Business Flat | C162: SAC - Non Demand | D162: FIXED | E162: 2012-12-31 | F162: DEC | G162: 2012 | H162: 1213
A163: 8500 | B163: 8500 - Business Flat | C163: SAC - Non Demand | D163: FIXED | E163: 2013-01-31 | F163: JAN | G163: 2013 | H163: 1213
A164: 8500 | B164: 8500 - Business Flat | C164: SAC - Non Demand | D164: FIXED | E164: 2013-02-28 | F164: FEB | G164: 2013 | H164: 1213
A165: 8500 | B165: 8500 - Business Flat | C165: SAC - Non Demand | D165: FIXED | E165: 2013-03-31 | F165: MAR | G165: 2013 | H165: 1213
A166: 8500 | B166: 8500 - Business Flat | C166: SAC - Non Demand | D166: FIXED | E166: 2013-04-30 | F166: APR | G166: 2013 | H166: 1213
A167: 8500 | B167: 8500 - Business Flat | C167: SAC - Non Demand | D167: FIXED | E167: 2013-05-31 | F167: MAY | G167: 2013 | H167: 1213
A168: 8500 | B168: 8500 - Business Flat | C168: SAC - Non Demand | D168: FIXED | E168: 2013-06-30 | F168: JUN | G168: 2013 | H168: 1213
A169: 8500 | B169: 8500 - Business Flat | C169: SAC - Non Demand | D169: FIXED | E169: 2013-07-31 | F169: JUL | G169: 2013 | H169: 1314
A170: 8500 | B170: 8500 - Business Flat | C170: SAC - Non Demand | D170: FIXED | E170: 2013-08-31 | F170: AUG | G170: 2013 | H170: 1314
A171: 8500 | B171: 8500 - Business Flat | C171: SAC - Non Demand | D171: FIXED | E171: 2013-09-30 | F171: SEP | G171: 2013 | H171: 1314
A172: 8500 | B172: 8500 - Business Flat | C172: SAC - Non Demand | D172: FIXED | E172: 2013-10-31 | F172: OCT | G172: 2013 | H172: 1314
A173: 8500 | B173: 8500 - Business Flat | C173: SAC - Non Demand | D173: FIXED | E173: 2013-11-30 | F173: NOV | G173: 2013 | H173: 1314
A174: 8500 | B174: 8500 - Business Flat | C174: SAC - Non Demand | D174: FIXED | E174: 2013-12-31 | F174: DEC | G174: 2013 | H174: 1314
A175: 8500 | B175: 8500 - Business Flat | C175: SAC - Non Demand | D175: FIXED | E175: 2014-01-31 | F175: JAN | G175: 2014 | H175: 1314
A176: 8500 | B176: 8500 - Business Flat | C176: SAC - Non Demand | D176: FIXED | E176: 2014-02-28 | F176: FEB | G176: 2014 | H176: 1314
A177: 8500 | B177: 8500 - Business Flat | C177: SAC - Non Demand | D177: FIXED | E177: 2014-03-31 | F177: MAR | G177: 2014 | H177: 1314
A178: 8500 | B178: 8500 - Business Flat | C178: SAC - Non Demand | D178: FIXED | E178: 2014-04-30 | F178: APR | G178: 2014 | H178: 1314
A179: 8500 | B179: 8500 - Business Flat | C179: SAC - Non Demand | D179: FIXED | E179: 2014-05-31 | F179: MAY | G179: 2014 | H179: 1314
A180: 8500 | B180: 8500 - Business Flat | C180: SAC - Non Demand | D180: FIXED | E180: 2014-06-30 | F180: JUN | G180: 2014 | H180: 1314
A181: 8800 | B181: 8800 - Business - TOU | C181: SAC - Non Demand | D181: FIXED | E181: 2011-07-31 | F181: JUL | G181: 2011 | H181: 1112 | I181: 6666
A182: 8800 | B182: 8800 - Business - TOU | C182: SAC - Non Demand | D182: FIXED | E182: 2011-08-31 | F182: AUG | G182: 2011 | H182: 1112 | I182: 6623
A183: 8800 | B183: 8800 - Business - TOU | C183: SAC - Non Demand | D183: FIXED | E183: 2011-09-30 | F183: SEP | G183: 2011 | H183: 1112 | I183: 6617
A184: 8800 | B184: 8800 - Business - TOU | C184: SAC - Non Demand | D184: FIXED | E184: 2011-10-31 | F184: OCT | G184: 2011 | H184: 1112 | I184: 6626
A185: 8800 | B185: 8800 - Business - TOU | C185: SAC - Non Demand | D185: FIXED | E185: 2011-11-30 | F185: NOV | G185: 2011 | H185: 1112 | I185: 6618
A186: 8800 | B186: 8800 - Business - TOU | C186: SAC - Non Demand | D186: FIXED | E186: 2011-12-31 | F186: DEC | G186: 2011 | H186: 1112 | I186: 6620
A187: 8800 | B187: 8800 - Business - TOU | C187: SAC - Non Demand | D187: FIXED | E187: 2012-01-31 | F187: JAN | G187: 2012 | H187: 1112 | I187: 6621
A188: 8800 | B188: 8800 - Business - TOU | C188: SAC - Non Demand | D188: FIXED | E188: 2012-02-29 | F188: FEB | G188: 2012 | H188: 1112 | I188: 6596
A189: 8800 | B189: 8800 - Business - TOU | C189: SAC - Non Demand | D189: FIXED | E189: 2012-03-31 | F189: MAR | G189: 2012 | H189: 1112 | I189: 6604
A190: 8800 | B190: 8800 - Business - TOU | C190: SAC - Non Demand | D190: FIXED | E190: 2012-04-30 | F190: APR | G190: 2012 | H190: 1112 | I190: 6612
A191: 8800 | B191: 8800 - Business - TOU | C191: SAC - Non Demand | D191: FIXED | E191: 2012-05-31 | F191: MAY | G191: 2012 | H191: 1112 | I191: 6622
A192: 8800 | B192: 8800 - Business - TOU | C192: SAC - Non Demand | D192: FIXED | E192: 2012-06-30 | F192: JUN | G192: 2012 | H192: 1112 | I192: 6621
A193: 8800 | B193: 8800 - Business - TOU | C193: SAC - Non Demand | D193: FIXED | E193: 2012-07-31 | F193: JUL | G193: 2012 | H193: 1213 | I193: 6573
A194: 8800 | B194: 8800 - Business - TOU | C194: SAC - Non Demand | D194: FIXED | E194: 2012-08-31 | F194: AUG | G194: 2012 | H194: 1213 | I194: 6534
A195: 8800 | B195: 8800 - Business - TOU | C195: SAC - Non Demand | D195: FIXED | E195: 2012-09-30 | F195: SEP | G195: 2012 | H195: 1213 | I195: 6477
A196: 8800 | B196: 8800 - Business - TOU | C196: SAC - Non Demand | D196: FIXED | E196: 2012-10-31 | F196: OCT | G196: 2012 | H196: 1213 | I196: 6417
A197: 8800 | B197: 8800 - Business - TOU | C197: SAC - Non Demand | D197: FIXED | E197: 2012-11-30 | F197: NOV | G197: 2012 | H197: 1213 | I197: 60
A198: 8800 | B198: 8800 - Business - TOU | C198: SAC - Non Demand | D198: FIXED | E198: 2012-12-31 | F198: DEC | G198: 2012 | H198: 1213
A199: 8800 | B199: 8800 - Business - TOU | C199: SAC - Non Demand | D199: FIXED | E199: 2013-01-31 | F199: JAN | G199: 2013 | H199: 1213
A200: 8800 | B200: 8800 - Business - TOU | C200: SAC - Non Demand | D200: FIXED | E200: 2013-02-28 | F200: FEB | G200: 2013 | H200: 1213
... 297 more rows

Sheet NMI profile assessment
C2: =SUM(E2:J2) -> 1379583 | D2: Primary | E2: =SUMIF(E$31:E$60,"SAC",$C$31:$C$60) -> 1376204 | F2: 3323 | G2: 56 | H2: 0 | I2: 0 | J2: 0
C3: =SUM(E3:J3) -> 734143 | D3: CL | E3: =SUMIF(E$31:E$60,"CL",$C$31:$C$60) -> 125 | F3: 717541 | G3: 16425 | H3: 52 | I3: 0 | J3: 0
C4: =SUM(E4:J4) -> 254496 | D4: FIT | E4: =SUMIF(E$31:E$60,"FIT",$C$31:$C$60) -> 0 | F4: 84706 | G4: 162890 | H4: 6882 | I4: 18 | J4: 0
B5: NTC's | C5: =SUM(C2:C4) -> 2368222
B7: =C7/$C$27 -> 0.4146159821 | C7: =C40 -> 570648 | D7: Primary Only
B8: 0.3924112621 | C8: =C41 -> 540087 | D8: Primary + CL
B9: 0.005963690368 | C9: =C42 -> 8208 | D9: Primary + 2xCL
B10: 0.06154051829 | C10: =C32+C46 -> 84700 | D10: Primary + FiT
B11: 2.179711392e-06 | C11: =C36+C47 -> 3 | D11: Primary + 2xFiT
B12: 0.1181948502 | C12: =C33+C44 -> 162675 | D12: Primary + CL + FiT
B13: 0.004771388236 | C13: =C34+C43 -> 6567 | D13: Primary + 2xCL + FiT
B14: 7.265704639e-07 | C14: =C45 -> 1 | D14: Primary + CL + 2xFiT
B15: 1.453140928e-06 | C15: =C35 -> 2 | D15: Primary + 2xCL + 2xFiT
B16: 0.001015745509 | C16: =C48 -> 1398 | D16: 2x Primary
B17: 0.0009561667305 | C17: =C49 -> 1316 | D17: 2x Primary + CL
B18: 1.089855696e-05 | C18: =C50 -> 15 | D18: 2x Primary + CLx2
B19: 0.0001533063679 | C19: =C37+C53 -> 211 | D19: 2x Primary + FiT
B20: 0.0002245102733 | C20: =C38+C52 -> 309 | D20: 2x Primary + CL + FiT
B21: 5.812563711e-06 | C21: =C51 -> 8 | D21: 2x Primary + 2xCL + FiT
B22: 1.743769113e-05 | C22: =C54 -> 24 | D22: 3x Primary
B23: 1.525797974e-05 | C23: =C55 -> 21 | D23: 3x Primary + CL
B24: 2.179711392e-06 | C24: =C57 -> 3 | D24: 3x Primary + FiT
B25: 5.812563711e-06 | C25: =C39+C56 -> 8 | D25: 3x Primary + CL + FiT
B26: 9.082130799e-05 | C26: =C31 -> 125 | D26: CL Only
B27: NMI's | C27: =SUM(C7:C26) -> 1376329
B30: Date | C30: NMIs | D30: Tariffs | E30: NTC1 | F30: NTC2 | G30: NTC3 | H30: NTC4 | I30: NTC5 | J30: NTC6
B31: APR2014 | C31: 125 | D31: =9-COUNTBLANK(E31:J31) -> 4 | E31: CL
B32: APR2014 | C32: 18696 | D32: 2 | E32: SAC | F32: FIT
B33: APR2014 | C33: 31829 | D33: 3 | E33: SAC | F33: CL | G33: FIT
B34: APR2014 | C34: 975 | D34: 4 | E34: SAC | F34: CL | G34: CL | H34: FIT
B35: APR2014 | C35: 2 | D35: 5 | E35: SAC | F35: CL | G35: CL | H35: FIT | I35: FIT
B36: APR2014 | C36: 1 | D36: 3 | E36: SAC | F36: FIT | G36: FIT
B37: APR2014 | C37: 36 | D37: 3 | E37: SAC | F37: SAC | G37: FIT
B38: APR2014 | C38: 44 | D38: 4 | E38: SAC | F38: SAC | G38: CL | H38: FIT
B39: APR2014 | C39: 2 | D39: 5 | E39: SAC | F39: SAC | G39: SAC | H39: CL | I39: FIT
B40: APR2014 | C40: 570648 | D40: 1 | E40: SAC
B41: APR2014 | C41: 540087 | D41: 2 | E41: SAC | F41: CL
B42: APR2014 | C42: 8208 | D42: 3 | E42: SAC | F42: CL | G42: CL
B43: APR2014 | C43: 5592 | D43: 4 | E43: SAC | F43: CL | G43: CL | H43: FIT
B44: APR2014 | C44: 130846 | D44: 3 | E44: SAC | F44: CL | G44: FIT
B45: APR2014 | C45: 1 | D45: 4 | E45: SAC | F45: CL | G45: FIT | H45: FIT
B46: APR2014 | C46: 66004 | D46: 2 | E46: SAC | F46: FIT
B47: APR2014 | C47: 2 | D47: 3 | E47: SAC | F47: FIT | G47: FIT
B48: APR2014 | C48: 1398 | D48: 2 | E48: SAC | F48: SAC
B49: APR2014 | C49: 1316 | D49: 3 | E49: SAC | F49: SAC | G49: CL
B50: APR2014 | C50: 15 | D50: 4 | E50: SAC | F50: SAC | G50: CL | H50: CL
B51: APR2014 | C51: 8 | D51: 5 | E51: SAC | F51: SAC | G51: CL | H51: CL | I51: FIT
B52: APR2014 | C52: 265 | D52: 4 | E52: SAC | F52: SAC | G52: CL | H52: FIT
B53: APR2014 | C53: 175 | D53: 3 | E53: SAC | F53: SAC | G53: FIT
B54: APR2014 | C54: 24 | D54: 3 | E54: SAC | F54: SAC | G54: SAC
B55: APR2014 | C55: 21 | D55: 4 | E55: SAC | F55: SAC | G55: SAC | H55: CL
B56: APR2014 | C56: 6 | D56: 5 | E56: SAC | F56: SAC | G56: SAC | H56: CL | I56: FIT
B57: APR2014 | C57: 3 | D57: 4 | E57: SAC | F57: SAC | G57: SAC | H57: FIT
B58: APR2014 | C58: 1 | D58: =9-COUNTBLANK(E58:J58) -> 5 | E58: SACD | F58: CL
B59: APR2014 | C59: 3 | D59: =9-COUNTBLANK(E59:J59) -> 5 | E59: SACD | F59: FIT
B60: APR2014 | C60: 10 | D60: =9-COUNTBLANK(E60:J60) -> 5 | E60: SACD | F60: SAC

Sheet NMI impact analysis
B2: Please note that this information does contain a minimal number of inactive but not decommissioned NMI's
D4: NMI
B5: FEB2014 | D5: =SUMIF($A$40:$A$389,B5,$C$40:$C$389) -> 1362783
B6: MAR2014 | D6: =SUMIF($A$40:$A$389,B6,$C$40:$C$389) -> 1364367
B7: APR2014 | D7: =SUMIF($A$40:$A$389,B7,$C$40:$C$389) -> 1365940
E9: NTC's
A10: NTC | B10: NTC Desc | C10: MSC | E10: =B5 -> FEB2014 | F10: =B6 -> MAR2014 | G10: =B7 -> APR2014
A11: 7500 | B11: 7500 - Solar PV 2 (net with FIT) | C11: ='EGX Only -> OUTPUT'!$E$23 -> 24.7 | E11: =SUMIFS($C$40:$C$389,$A$40:$A$389,E$10,$F$40:$F$389,$A11)+SUMIFS($C$40:$C$389,$A$40:$A$389,E$10,$G$40:$G$389,$A11)+SUMIFS($C$40:$C$389,$A$40:$A$389,E$10,$H$40:$H$389,$A11)+SUMIFS($C$40:$C$389,$A$40:$A$389,E$10,$I$40:$I$389,$A11)+SUMIFS($C$40:$C$389,$A$40:$A$389,E$10,$J$40:$J$389,$A11)+SUMIFS($C$40:$C$389,$A$40:$A$389,E$10,$K$40:$K$389,$A11) -> 44065 | F11: 48147 | G11: 51585
A12: 7600 | B12: 7600 - Residential - PeakSmart | C12: ='EGX Only -> OUTPUT'!$E$21 -> 35.29 | E12: 0 | F12: 0 | G12: 0
A13: 8300 | B13: 8300 - Demand Small | E13: 14 | F13: 14 | G13: 14
A14: 8400 | B14: 8400 - Residential Flat | C14: ='EGX Only -> OUTPUT'!$E$21 -> 35.29 | E14: 1252233 | F14: 1253743 | G14: 1255282
A15: 8500 | B15: 8500 - Business Flat | C15: ='EGX Only -> OUTPUT'!$E$21 -> 35.29 | E15: 99165 | F15: 99195 | G15: 99209
A16: 8800 | B16: 8800 - Business - TOU | C16: ='EGX Only -> OUTPUT'!$E$21 -> 35.29 | E16: 14476 | F16: 14508 | G16: 14510
A17: 8900 | B17: 8900 - Residential TOU | C17: ='EGX Only -> OUTPUT'!$E$21 -> 35.29 | E17: 154 | F17: 160 | G17: 163
A18: 9000 | B18: 9000 - Controlled Load 1 (super economy) | C18: ='EGX Only -> OUTPUT'!$E$22 -> 10.58 | E18: 214458 | F18: 214578 | G18: 214673
A19: 9100 | B19: 9100 - Controlled Load 2 (economy) | C19: ='EGX Only -> OUTPUT'!$E$22 -> 10.58 | E19: 519500 | F19: 519431 | G19: 519469 | J19: 1
A20: 9700 | B20: 9700 - Solar PV (gross) | C20: ='EGX Only -> OUTPUT'!$E$23 -> 24.7 | E20: 496 | F20: 495 | G20: 491
A21: 9800 | B21: 9800 - Solar PV (net) | C21: ='EGX Only -> OUTPUT'!$E$23 -> 24.7 | E21: 549 | F21: 587 | G21: 623
A22: 9900 | B22: 9900 - Solar PV (net with FIT) | C22: ='EGX Only -> OUTPUT'!$E$23 -> 24.7 | E22: 203242 | F22: 202502 | G22: 201794
E23: =SUM(E11:E22) -> 2348352 | F23: =SUM(F11:F22) -> 2353360 | G23: =SUM(G11:G22) -> 2357813
D25: Date | H25: Average Rates applicable
B26: Classification | C26: Values | D26: FEB2014 | E26: MAR2014 | F26: APR2014 | H26: FEB | I26: MAR | J26: APR
B27: Bus | C27: NMI's | D27: 110269 | E27: 110339 | F27: 110370
C28: _MSC | D28: 4040207.39 | E28: 4044050.28 | F28: 4046442.77 | H28: =GETPIVOTDATA("_MSC",$B$25,"Date","FEB2014","Classification","Bus")/GETPIVOTDATA("NMI's",$B$25,"Date","FEB2014","Classification","Bus") -> 36.63955772 | I28: =GETPIVOTDATA("_MSC",$B$25,"Date","MAR2014","Classification","Bus")/GETPIVOTDATA("NMI's",$B$25,"Date","MAR2014","Classification","Bus") -> 36.6511413 | J28: =GETPIVOTDATA("_MSC",$B$25,"Date","APR2014","Classification","Bus")/GETPIVOTDATA("NMI's",$B$25,"Date","APR2014","Classification","Bus") -> 36.66252396
B29: Res | C29: NMI's | D29: 1249675 | E29: 1251196 | F29: 1252751
C30: _MSC | D30: 57841608.79 | E30: 57977757.86 | F30: 58100840.29 | H30: =GETPIVOTDATA("_MSC",$B$25,"Date","FEB2014","Classification","Res")/GETPIVOTDATA("NMI's",$B$25,"Date","FEB2014","Classification","Res") -> 46.28532122 | I30: =GETPIVOTDATA("_MSC",$B$25,"Date","MAR2014","Classification","Res")/GETPIVOTDATA("NMI's",$B$25,"Date","MAR2014","Classification","Res") -> 46.33787021 | J30: =GETPIVOTDATA("_MSC",$B$25,"Date","APR2014","Classification","Res")/GETPIVOTDATA("NMI's",$B$25,"Date","APR2014","Classification","Res") -> 46.3786022
B31: Res / Bus | C31: NMI's | D31: 2712 | E31: 2707 | F31: 2694
C32: _MSC | D32: 223538.32 | E32: 223256.02 | F32: 222391.46 | H32: =GETPIVOTDATA("_MSC",$B$25,"Date","FEB2014","Classification","Res / Bus")/GETPIVOTDATA("NMI's",$B$25,"Date","FEB2014","Classification","Res / Bus") -> 82.42563422 | I32: =GETPIVOTDATA("_MSC",$B$25,"Date","MAR2014","Classification","Res / Bus")/GETPIVOTDATA("NMI's",$B$25,"Date","MAR2014","Classification","Res / Bus") -> 82.47359438 | J32: =GETPIVOTDATA("_MSC",$B$25,"Date","APR2014","Classification","Res / Bus")/GETPIVOTDATA("NMI's",$B$25,"Date","APR2014","Classification","Res / Bus") -> 82.5506533
B33: CL | C33: NMI's | D33: 127 | E33: 125 | F33: 125
C34: _MSC | D34: 1343.66 | E34: 1322.5 | F34: 1322.5
B35: Total NMI's | D35: 1362783 | E35: 1364367 | F35: 1365940
B36: Total _MSC | D36: 62106698.16 | E36: 62246386.66 | F36: 62370997.02
A39: Date | B39: Classification | C39: NMIs | D39: NTC Count | E39: Total Tariffs | F39: NTC1 | G39: NTC2 | H39: NTC3 | I39: NTC4 | J39: NTC5 | K39: MSC | L39: Tot MSC
A40: MAR2014 | B40: Res / Bus | C40: 591 | D40: 2 | E40: =C40*D40 -> 1182 | F40: 8400 | G40: 8500 | K40: =IF(ISERROR(VLOOKUP(F40,$A$11:$C$22,3,FALSE)),0,VLOOKUP(F40,$A$11:$C$22,3,FALSE))+IF(ISERROR(VLOOKUP(G40,$A$11:$C$22,3,FALSE)),0,VLOOKUP(G40,$A$11:$C$22,3,FALSE))+IF(ISERROR(VLOOKUP(H40,$A$11:$C$22,3,FALSE)),0,VLOOKUP(H40,$A$11:$C$22,3,FALSE))+IF(ISERROR(VLOOKUP(I40,$A$11:$C$22,3,FALSE)),0,VLOOKUP(I40,$A$11:$C$22,3,FALSE))+IF(ISERROR(VLOOKUP(J40,$A$11:$C$22,3,FALSE)),0,VLOOKUP(J40,$A$11:$C$22,3,FALSE)) -> 70.58 | L40: =C40*K40 -> 41712.78
A41: MAR2014 | B41: Res / Bus | C41: 24 | D41: 3 | E41: 72 | F41: 8400 | G41: 8500 | H41: 8800 | K41: 105.87 | L41: 2540.88
A42: MAR2014 | B42: Res / Bus | C42: 9 | D42: 4 | E42: 36 | F42: 8400 | G42: 8500 | H42: 8800 | I42: 9000 | K42: 116.45 | L42: 1048.05
A43: MAR2014 | B43: Res / Bus | C43: 1 | D43: 5 | E43: 5 | F43: 8400 | G43: 8500 | H43: 8800 | I43: 9000 | J43: 9800 | K43: 141.15 | L43: 141.15
A44: MAR2014 | B44: Res / Bus | C44: 3 | D44: 5 | E44: 15 | F44: 8400 | G44: 8500 | H44: 8800 | I44: 9000 | J44: 9900 | K44: 141.15 | L44: 423.45
A45: MAR2014 | B45: Res / Bus | C45: 12 | D45: 4 | E45: 48 | F45: 8400 | G45: 8500 | H45: 8800 | I45: 9100 | K45: 116.45 | L45: 1397.4
A46: MAR2014 | B46: Res / Bus | C46: 2 | D46: 5 | E46: 10 | F46: 8400 | G46: 8500 | H46: 8800 | I46: 9100 | J46: 9900 | K46: 141.15 | L46: 282.3
A47: MAR2014 | B47: Res / Bus | C47: 3 | D47: 4 | E47: 12 | F47: 8400 | G47: 8500 | H47: 8800 | I47: 9900 | K47: 130.57 | L47: 391.71
A48: MAR2014 | B48: Res / Bus | C48: 242 | D48: 3 | E48: 726 | F48: 8400 | G48: 8500 | H48: 9000 | K48: 81.16 | L48: 19640.72
A49: MAR2014 | B49: Res / Bus | C49: 9 | D49: 4 | E49: 36 | F49: 8400 | G49: 8500 | H49: 9000 | I49: 9100 | K49: 91.74 | L49: 825.66
A50: MAR2014 | B50: Res / Bus | C50: 5 | D50: 5 | E50: 25 | F50: 8400 | G50: 8500 | H50: 9000 | I50: 9100 | J50: 9900 | K50: 116.44 | L50: 582.2
A51: MAR2014 | B51: Res / Bus | C51: 47 | D51: 4 | E51: 188 | F51: 8400 | G51: 8500 | H51: 9000 | I51: 9900 | K51: 105.86 | L51: 4975.42
A52: MAR2014 | B52: Res / Bus | C52: 711 | D52: 3 | E52: 2133 | F52: 8400 | G52: 8500 | H52: 9100 | K52: 81.16 | L52: 57704.76
A53: MAR2014 | B53: Res / Bus | C53: 1 | D53: 4 | E53: 4 | F53: 8400 | G53: 8500 | H53: 9100 | I53: 9700 | K53: 105.86 | L53: 105.86
A54: MAR2014 | B54: Res / Bus | C54: 113 | D54: 4 | E54: 452 | F54: 8400 | G54: 8500 | H54: 9100 | I54: 9900 | K54: 105.86 | L54: 11962.18
A55: MAR2014 | B55: Res / Bus | C55: 4 | D55: 3 | E55: 12 | F55: 8400 | G55: 8500 | H55: 9800 | K55: 95.28 | L55: 381.12
A56: MAR2014 | B56: Res / Bus | C56: 111 | D56: 3 | E56: 333 | F56: 8400 | G56: 8500 | H56: 9900 | K56: 95.28 | L56: 10576.08
A57: MAR2014 | B57: Res / Bus | C57: 253 | D57: 2 | E57: 506 | F57: 8400 | G57: 8800 | K57: 70.58 | L57: 17856.74
A58: MAR2014 | B58: Res / Bus | C58: 87 | D58: 3 | E58: 261 | F58: 8400 | G58: 8800 | H58: 9000 | K58: 81.16 | L58: 7060.92
A59: MAR2014 | B59: Res / Bus | C59: 6 | D59: 4 | E59: 24 | F59: 8400 | G59: 8800 | H59: 9000 | I59: 9100 | K59: 91.74 | L59: 550.44
A60: MAR2014 | B60: Res / Bus | C60: 4 | D60: 5 | E60: 20 | F60: 8400 | G60: 8800 | H60: 9000 | I60: 9100 | J60: 9900 | K60: 116.44 | L60: 465.76
A61: MAR2014 | B61: Res / Bus | C61: 1 | D61: 4 | E61: 4 | F61: 8400 | G61: 8800 | H61: 9000 | I61: 9800 | K61: 105.86 | L61: 105.86
A62: MAR2014 | B62: Res / Bus | C62: 33 | D62: 4 | E62: 132 | F62: 8400 | G62: 8800 | H62: 9000 | I62: 9900 | K62: 105.86 | L62: 3493.38
A63: MAR2014 | B63: Res / Bus | C63: 250 | D63: 3 | E63: 750 | F63: 8400 | G63: 8800 | H63: 9100 | K63: 81.16 | L63: 20290
A64: MAR2014 | B64: Res / Bus | C64: 3 | D64: 4 | E64: 12 | F64: 8400 | G64: 8800 | H64: 9100 | I64: 9800 | K64: 105.86 | L64: 317.58
A65: MAR2014 | B65: Res / Bus | C65: 67 | D65: 4 | E65: 268 | F65: 8400 | G65: 8800 | H65: 9100 | I65: 9900 | K65: 105.86 | L65: 7092.62
A66: MAR2014 | B66: Res / Bus | C66: 2 | D66: 3 | E66: 6 | F66: 8400 | G66: 8800 | H66: 9800 | K66: 95.28 | L66: 190.56
A67: MAR2014 | B67: Res / Bus | C67: 41 | D67: 3 | E67: 123 | F67: 8400 | G67: 8800 | H67: 9900 | K67: 95.28 | L67: 3906.48
A68: MAR2014 | B68: Res | C68: 143645 | D68: 2 | E68: 287290 | F68: 8400 | G68: 9000 | K68: 45.87 | L68: 6588996.15
A69: MAR2014 | B69: Res | C69: 8208 | D69: 3 | E69: 24624 | F69: 8400 | G69: 9000 | H69: 9100 | K69: 56.45 | L69: 463341.6
A70: MAR2014 | B70: Res | C70: 7 | D70: 4 | E70: 28 | F70: 8400 | G70: 9000 | H70: 9100 | I70: 9700 | K70: 81.15 | L70: 568.05
A71: MAR2014 | B71: Res | C71: 7 | D71: 4 | E71: 28 | F71: 8400 | G71: 9000 | H71: 9100 | I71: 9800 | K71: 81.15 | L71: 568.05
A72: MAR2014 | B72: Res | C72: 5579 | D72: 4 | E72: 22316 | F72: 8400 | G72: 9000 | H72: 9100 | I72: 9900 | K72: 81.15 | L72: 452735.85
A73: MAR2014 | B73: Res | C73: 60 | D73: 3 | E73: 180 | F73: 8400 | G73: 9000 | H73: 9700 | K73: 70.57 | L73: 4234.2
A74: MAR2014 | B74: Res | C74: 1 | D74: 4 | E74: 4 | F74: 8400 | G74: 9000 | H74: 9700 | I74: 9900 | K74: 95.27 | L74: 95.27
A75: MAR2014 | B75: Res | C75: 38 | D75: 3 | E75: 114 | F75: 8400 | G75: 9000 | H75: 9800 | K75: 70.57 | L75: 2681.66
A76: MAR2014 | B76: Res | C76: 44996 | D76: 3 | E76: 134988 | F76: 8400 | G76: 9000 | H76: 9900 | K76: 70.57 | L76: 3175367.72
A77: MAR2014 | B77: Res | C77: 394489 | D77: 2 | E77: 788978 | F77: 8400 | G77: 9100 | K77: 45.87 | L77: 18095210.43
A78: MAR2014 | B78: Res | C78: 170 | D78: 3 | E78: 510 | F78: 8400 | G78: 9100 | H78: 9700 | K78: 70.57 | L78: 11996.9
A79: MAR2014 | B79: Res | C79: 81 | D79: 3 | E79: 243 | F79: 8400 | G79: 9100 | H79: 9800 | K79: 70.57 | L79: 5716.17
A80: MAR2014 | B80: Res | C80: 85505 | D80: 3 | E80: 256515 | F80: 8400 | G80: 9100 | H80: 9900 | K80: 70.57 | L80: 6034087.85
A81: MAR2014 | B81: Res | C81: 244 | D81: 2 | E81: 488 | F81: 8400 | G81: 9700 | K81: 59.99 | L81: 14637.56
A82: MAR2014 | B82: Res | C82: 2 | D82: 3 | E82: 6 | F82: 8400 | G82: 9700 | H82: 9900 | K82: 84.69 | L82: 169.38
A83: MAR2014 | B83: Res | C83: 126 | D83: 2 | E83: 252 | F83: 8400 | G83: 9800 | K83: 59.99 | L83: 7558.74
A84: MAR2014 | B84: Res | C84: 63362 | D84: 2 | E84: 126724 | F84: 8400 | G84: 9900 | K84: 59.99 | L84: 3801086.38
A85: MAR2014 | B85: Bus | C85: 90812 | D85: 1 | E85: 90812 | F85: 8500 | K85: 35.29 | L85: 3204755.48
A86: MAR2014 | B86: Bus | C86: 554 | D86: 2 | E86: 1108 | F86: 8500 | G86: 8800 | K86: 70.58 | L86: 39101.32
A87: MAR2014 | B87: Bus | C87: 6 | D87: 3 | E87: 18 | F87: 8500 | G87: 8800 | H87: 9000 | K87: 81.16 | L87: 486.96
A88: MAR2014 | B88: Bus | C88: 30 | D88: 3 | E88: 90 | F88: 8500 | G88: 8800 | H88: 9100 | K88: 81.16 | L88: 2434.8
A89: MAR2014 | B89: Bus | C89: 1 | D89: 4 | E89: 4 | F89: 8500 | G89: 8800 | H89: 9100 | I89: 9800 | K89: 105.86 | L89: 105.86
A90: MAR2014 | B90: Bus | C90: 1 | D90: 4 | E90: 4 | F90: 8500 | G90: 8800 | H90: 9100 | I90: 9900 | K90: 105.86 | L90: 105.86
A91: MAR2014 | B91: Bus | C91: 2 | D91: 3 | E91: 6 | F91: 8500 | G91: 8800 | H91: 9800 | K91: 95.28 | L91: 190.56
A92: MAR2014 | B92: Bus | C92: 14 | D92: 3 | E92: 42 | F92: 8500 | G92: 8800 | H92: 9900 | K92: 95.28 | L92: 1333.92
A93: MAR2014 | B93: Bus | C93: 482 | D93: 2 | E93: 964 | F93: 8500 | G93: 9000 | K93: 45.87 | L93: 22109.34
A94: MAR2014 | B94: Bus | C94: 9 | D94: 3 | E94: 27 | F94: 8500 | G94: 9000 | H94: 9100 | K94: 56.45 | L94: 508.05
A95: MAR2014 | B95: Bus | C95: 3 | D95: 4 | E95: 12 | F95: 8500 | G95: 9000 | H95: 9100 | I95: 9900 | K95: 81.15 | L95: 243.45
A96: MAR2014 | B96: Bus | C96: 5 | D96: 3 | E96: 15 | F96: 8500 | G96: 9000 | H96: 9800 | K96: 70.57 | L96: 352.85
A97: MAR2014 | B97: Bus | C97: 91 | D97: 3 | E97: 273 | F97: 8500 | G97: 9000 | H97: 9900 | K97: 70.57 | L97: 6421.87
A98: MAR2014 | B98: Bus | C98: 2436 | D98: 2 | E98: 4872 | F98: 8500 | G98: 9100 | K98: 45.87 | L98: 111739.32
A99: MAR2014 | B99: Bus | C99: 1 | D99: 3 | E99: 3 | F99: 8500 | G99: 9100 | H99: 9700 | K99: 70.57 | L99: 70.57
A100: MAR2014 | B100: Bus | C100: 18 | D100: 3 | E100: 54 | F100: 8500 | G100: 9100 | H100: 9800 | K100: 70.57 | L100: 1270.26
A101: MAR2014 | B101: Bus | C101: 201 | D101: 3 | E101: 603 | F101: 8500 | G101: 9100 | H101: 9900 | K101: 70.57 | L101: 14184.57
A102: MAR2014 | B102: Bus | C102: 5 | D102: 2 | E102: 10 | F102: 8500 | G102: 9700 | K102: 59.99 | L102: 299.95
A103: MAR2014 | B103: Bus | C103: 230 | D103: 2 | E103: 460 | F103: 8500 | G103: 9800 | K103: 59.99 | L103: 13797.7
A104: MAR2014 | B104: Bus | C104: 1878 | D104: 2 | E104: =C104*D104 -> 3756 | F104: 8500 | G104: 9900 | K104: =IF(ISERROR(VLOOKUP(F104,$A$11:$C$22,3,FALSE)),0,VLOOKUP(F104,$A$11:$C$22,3,FALSE))+IF(ISERROR(VLOOKUP(G104,$A$11:$C$22,3,FALSE)),0,VLOOKUP(G104,$A$11:$C$22,3,FALSE))+IF(ISERROR(VLOOKUP(H104,$A$11:$C$22,3,FALSE)),0,VLOOKUP(H104,$A$11:$C$22,3,FALSE))+IF(ISERROR(VLOOKUP(I104,$A$11:$C$22,3,FALSE)),0,VLOOKUP(I104,$A$11:$C$22,3,FALSE))+IF(ISERROR(VLOOKUP(J104,$A$11:$C$22,3,FALSE)),0,VLOOKUP(J104,$A$11:$C$22,3,FALSE)) -> 59.99 | L104: =C104*K104 -> 112661.22
A105: MAR2014 | B105: Bus | C105: 4 | D105: 1 | E105: 4 | F105: 8600 | K105: 0 | L105: 0
A106: MAR2014 | B106: Bus | C106: 1 | D106: 1 | E106: 1 | F106: 8700 | K106: 0 | L106: 0
A107: MAR2014 | B107: Bus | C107: 1 | D107: 2 | E107: 2 | F107: 8700 | G107: 8800 | K107: 35.29 | L107: 35.29
A108: MAR2014 | B108: Bus | C108: 11936 | D108: 1 | E108: 11936 | F108: 8800 | K108: 35.29 | L108: 421221.44
A109: MAR2014 | B109: Bus | C109: 100 | D109: 2 | E109: 200 | F109: 8800 | G109: 9000 | K109: 45.87 | L109: 4587
A110: MAR2014 | B110: Bus | C110: 4 | D110: 3 | E110: 12 | F110: 8800 | G110: 9000 | H110: 9100 | K110: 56.45 | L110: 225.8
A111: MAR2014 | B111: Bus | C111: 3 | D111: 4 | E111: 12 | F111: 8800 | G111: 9000 | H111: 9100 | I111: 9900 | K111: 81.15 | L111: 243.45
A112: MAR2014 | B112: Bus | C112: 26 | D112: 3 | E112: 78 | F112: 8800 | G112: 9000 | H112: 9900 | K112: 70.57 | L112: 1834.82
A113: MAR2014 | B113: Bus | C113: 488 | D113: 2 | E113: 976 | F113: 8800 | G113: 9100 | K113: 45.87 | L113: 22384.56
A114: MAR2014 | B114: Bus | C114: 10 | D114: 3 | E114: 30 | F114: 8800 | G114: 9100 | H114: 9800 | K114: 70.57 | L114: 705.7
A115: MAR2014 | B115: Bus | C115: 63 | D115: 3 | E115: 189 | F115: 8800 | G115: 9100 | H115: 9900 | K115: 70.57 | L115: 4445.91
A116: MAR2014 | B116: Bus | C116: 1 | D116: 2 | E116: 2 | F116: 8800 | G116: 9700 | K116: 59.99 | L116: 59.99
A117: MAR2014 | B117: Bus | C117: 57 | D117: 2 | E117: 114 | F117: 8800 | G117: 9800 | K117: 59.99 | L117: 3419.43
A118: MAR2014 | B118: Bus | C118: 328 | D118: 2 | E118: 656 | F118: 8800 | G118: 9900 | K118: 59.99 | L118: 19676.72
A119: MAR2014 | B119: Res | C119: 109 | D119: 1 | E119: 109 | F119: 8900 | K119: 35.29 | L119: 3846.61
A120: MAR2014 | B120: Res | C120: 10 | D120: 2 | E120: 20 | F120: 8900 | G120: 9000 | K120: 45.87 | L120: 458.7
A121: MAR2014 | B121: Res | C121: 13 | D121: 2 | E121: 26 | F121: 8900 | G121: 9100 | K121: 45.87 | L121: 596.31
A122: MAR2014 | B122: Res | C122: 9 | D122: 3 | E122: 27 | F122: 8900 | G122: 9100 | H122: 9900 | K122: 70.57 | L122: 635.13
A123: MAR2014 | B123: Res | C123: 9 | D123: 2 | E123: 18 | F123: 8900 | G123: 9900 | K123: 59.99 | L123: 539.91
A124: MAR2014 | B124: CL | C124: 15 | D124: 1 | E124: 15 | F124: 9000 | K124: 10.58 | L124: 158.7
A125: MAR2014 | B125: CL | C125: 110 | D125: 1 | E125: 110 | F125: 9100 | K125: 10.58 | L125: 1163.8
A126: APR2014 | B126: Res | C126: 18223 | D126: 2 | E126: 36446 | F126: 7500 | G126: 8400 | K126: 59.99 | L126: 1093197.77
A127: APR2014 | B127: Res / Bus | C127: 21 | D127: 3 | E127: 63 | F127: 7500 | G127: 8400 | H127: 8500 | K127: 95.28 | L127: 2000.88
A128: APR2014 | B128: Res / Bus | C128: 2 | D128: 5 | E128: 10 | F128: 7500 | G128: 8400 | H128: 8500 | I128: 8800 | J128: 9100 | K128: 141.15 | L128: 282.3
A129: APR2014 | B129: Res / Bus | C129: 6 | D129: 4 | E129: 24 | F129: 7500 | G129: 8400 | H129: 8500 | I129: 9000 | K129: 105.86 | L129: 635.16
A130: APR2014 | B130: Res / Bus | C130: 23 | D130: 4 | E130: 92 | F130: 7500 | G130: 8400 | H130: 8500 | I130: 9100 | K130: 105.86 | L130: 2434.78
A131: APR2014 | B131: Res / Bus | C131: 12 | D131: 3 | E131: 36 | F131: 7500 | G131: 8400 | H131: 8800 | K131: 95.28 | L131: 1143.36
A132: APR2014 | B132: Res / Bus | C132: 6 | D132: 4 | E132: 24 | F132: 7500 | G132: 8400 | H132: 8800 | I132: 9000 | K132: 105.86 | L132: 635.16
A133: APR2014 | B133: Res / Bus | C133: 8 | D133: 4 | E133: 32 | F133: 7500 | G133: 8400 | H133: 8800 | I133: 9100 | K133: 105.86 | L133: 846.88
A134: APR2014 | B134: Res | C134: 10617 | D134: 3 | E134: 31851 | F134: 7500 | G134: 8400 | H134: 9000 | K134: 70.57 | L134: 749241.69
A135: APR2014 | B135: Res | C135: 972 | D135: 4 | E135: 3888 | F135: 7500 | G135: 8400 | H135: 9000 | I135: 9100 | K135: 81.15 | L135: 78877.8
A136: APR2014 | B136: Res | C136: 2 | D136: 5 | E136: 10 | F136: 7500 | G136: 8400 | H136: 9000 | I136: 9100 | J136: 9700 | K136: 105.85 | L136: 211.7
A137: APR2014 | B137: Res | C137: 21112 | D137: 3 | E137: 63336 | F137: 7500 | G137: 8400 | H137: 9100 | K137: 70.57 | L137: 1489873.84
A138: APR2014 | B138: Res | C138: 1 | D138: 3 | E138: 3 | F138: 7500 | G138: 8400 | H138: 9700 | K138: 84.69 | L138: 84.69
A139: APR2014 | B139: Bus | C139: 421 | D139: 2 | E139: 842 | F139: 7500 | G139: 8500 | K139: 59.99 | L139: 25255.79
A140: APR2014 | B140: Bus | C140: 3 | D140: 3 | E140: 9 | F140: 7500 | G140: 8500 | H140: 8800 | K140: 95.28 | L140: 285.84
A141: APR2014 | B141: Bus | C141: 1 | D141: 4 | E141: 4 | F141: 7500 | G141: 8500 | H141: 8800 | I141: 9100 | K141: 105.86 | L141: 105.86
A142: APR2014 | B142: Bus | C142: 28 | D142: 3 | E142: 84 | F142: 7500 | G142: 8500 | H142: 9000 | K142: 70.57 | L142: 1975.96
A143: APR2014 | B143: Bus | C143: 2 | D143: 4 | E143: 8 | F143: 7500 | G143: 8500 | H143: 9000 | I143: 9100 | K143: 81.15 | L143: 162.3
A144: APR2014 | B144: Bus | C144: 60 | D144: 3 | E144: 180 | F144: 7500 | G144: 8500 | H144: 9100 | K144: 70.57 | L144: 4234.2
A145: APR2014 | B145: Bus | C145: 44 | D145: 2 | E145: 88 | F145: 7500 | G145: 8800 | K145: 59.99 | L145: 2639.56
A146: APR2014 | B146: Bus | C146: 5 | D146: 3 | E146: 15 | F146: 7500 | G146: 8800 | H146: 9000 | K146: 70.57 | L146: 352.85
A147: APR2014 | B147: Bus | C147: 5 | D147: 3 | E147: 15 | F147: 7500 | G147: 8800 | H147: 9100 | K147: 70.57 | L147: 352.85
A148: APR2014 | B148: Res | C148: 8 | D148: 2 | E148: 16 | F148: 7500 | G148: 8900 | K148: 59.99 | L148: 479.92
A149: APR2014 | B149: Res | C149: 1 | D149: 4 | E149: 4 | F149: 7500 | G149: 8900 | H149: 9000 | I149: 9100 | K149: 81.15 | L149: 81.15
A150: APR2014 | B150: Res | C150: 2 | D150: 3 | E150: 6 | F150: 7500 | G150: 8900 | H150: 9100 | K150: 70.57 | L150: 141.14
A151: APR2014 | B151: Res / Bus | C151: 2 | D151: 2 | E151: 4 | F151: 8300 | G151: 8400 | K151: 35.29 | L151: 70.58
A152: APR2014 | B152: Bus | C152: 8 | D152: 2 | E152: 16 | F152: 8300 | G152: 8500 | K152: 35.29 | L152: 282.32
A153: APR2014 | B153: Bus | C153: 1 | D153: 2 | E153: 2 | F153: 8300 | G153: 9000 | K153: 10.58 | L153: 10.58
A154: APR2014 | B154: Bus | C154: 1 | D154: 2 | E154: 2 | F154: 8300 | G154: 9800 | K154: 24.7 | L154: 24.7
A155: APR2014 | B155: Bus | C155: 2 | D155: 2 | E155: 4 | F155: 8300 | G155: 9900 | K155: 24.7 | L155: 49.4
A156: APR2014 | B156: Res | C156: 457408 | D156: 1 | E156: 457408 | F156: 8400 | K156: 35.29 | L156: 16141928.32
A157: APR2014 | B157: Res / Bus | C157: 586 | D157: 2 | E157: 1172 | F157: 8400 | G157: 8500 | K157: 70.58 | L157: 41359.88
A158: APR2014 | B158: Res / Bus | C158: 24 | D158: 3 | E158: 72 | F158: 8400 | G158: 8500 | H158: 8800 | K158: 105.87 | L158: 2540.88
A159: APR2014 | B159: Res / Bus | C159: 9 | D159: 4 | E159: 36 | F159: 8400 | G159: 8500 | H159: 8800 | I159: 9000 | K159: 116.45 | L159: 1048.05
A160: APR2014 | B160: Res / Bus | C160: 1 | D160: 5 | E160: 5 | F160: 8400 | G160: 8500 | H160: 8800 | I160: 9000 | J160: 9800 | K160: 141.15 | L160: 141.15
A161: APR2014 | B161: Res / Bus | C161: 3 | D161: 5 | E161: 15 | F161: 8400 | G161: 8500 | H161: 8800 | I161: 9000 | J161: 9900 | K161: 141.15 | L161: 423.45
A162: APR2014 | B162: Res / Bus | C162: 12 | D162: 4 | E162: 48 | F162: 8400 | G162: 8500 | H162: 8800 | I162: 9100 | K162: 116.45 | L162: 1397.4
A163: APR2014 | B163: Res / Bus | C163: 2 | D163: 5 | E163: 10 | F163: 8400 | G163: 8500 | H163: 8800 | I163: 9100 | J163: 9900 | K163: 141.15 | L163: 282.3
A164: APR2014 | B164: Res / Bus | C164: 3 | D164: 4 | E164: 12 | F164: 8400 | G164: 8500 | H164: 8800 | I164: 9900 | K164: 130.57 | L164: 391.71
A165: APR2014 | B165: Res / Bus | C165: 241 | D165: 3 | E165: 723 | F165: 8400 | G165: 8500 | H165: 9000 | K165: 81.16 | L165: 19559.56
A166: APR2014 | B166: Res / Bus | C166: 9 | D166: 4 | E166: 36 | F166: 8400 | G166: 8500 | H166: 9000 | I166: 9100 | K166: 91.74 | L166: 825.66
A167: APR2014 | B167: Res / Bus | C167: 5 | D167: 5 | E167: 25 | F167: 8400 | G167: 8500 | H167: 9000 | I167: 9100 | J167: 9900 | K167: 116.44 | L167: 582.2
A168: APR2014 | B168: Res / Bus | C168: 47 | D168: 4 | E168: =C168*D168 -> 188 | F168: 8400 | G168: 8500 | H168: 9000 | I168: 9900 | K168: =IF(ISERROR(VLOOKUP(F168,$A$11:$C$22,3,FALSE)),0,VLOOKUP(F168,$A$11:$C$22,3,FALSE))+IF(ISERROR(VLOOKUP(G168,$A$11:$C$22,3,FALSE)),0,VLOOKUP(G168,$A$11:$C$22,3,FALSE))+IF(ISERROR(VLOOKUP(H168,$A$11:$C$22,3,FALSE)),0,VLOOKUP(H168,$A$11:$C$22,3,FALSE))+IF(ISERROR(VLOOKUP(I168,$A$11:$C$22,3,FALSE)),0,VLOOKUP(I168,$A$11:$C$22,3,FALSE))+IF(ISERROR(VLOOKUP(J168,$A$11:$C$22,3,FALSE)),0,VLOOKUP(J168,$A$11:$C$22,3,FALSE)) -> 105.86 | L168: =C168*K168 -> 4975.42
A169: APR2014 | B169: Res / Bus | C169: 704 | D169: 3 | E169: 2112 | F169: 8400 | G169: 8500 | H169: 9100 | K169: 81.16 | L169: 57136.64
A170: APR2014 | B170: Res / Bus | C170: 1 | D170: 4 | E170: 4 | F170: 8400 | G170: 8500 | H170: 9100 | I170: 9700 | K170: 105.86 | L170: 105.86
A171: APR2014 | B171: Res / Bus | C171: 111 | D171: 4 | E171: 444 | F171: 8400 | G171: 8500 | H171: 9100 | I171: 9900 | K171: 105.86 | L171: 11750.46
A172: APR2014 | B172: Res / Bus | C172: 4 | D172: 3 | E172: 12 | F172: 8400 | G172: 8500 | H172: 9800 | K172: 95.28 | L172: 381.12
A173: APR2014 | B173: Res / Bus | C173: 111 | D173: 3 | E173: 333 | F173: 8400 | G173: 8500 | H173: 9900 | K173: 95.28 | L173: 10576.08
A174: APR2014 | B174: Res / Bus | C174: 249 | D174: 2 | E174: 498 | F174: 8400 | G174: 8800 | K174: 70.58 | L174: 17574.42
A175: APR2014 | B175: Res / Bus | C175: 85 | D175: 3 | E175: 255 | F175: 8400 | G175: 8800 | H175: 9000 | K175: 81.16 | L175: 6898.6
A176: APR2014 | B176: Res / Bus | C176: 6 | D176: 4 | E176: 24 | F176: 8400 | G176: 8800 | H176: 9000 | I176: 9100 | K176: 91.74 | L176: 550.44
A177: APR2014 | B177: Res / Bus | C177: 3 | D177: 5 | E177: 15 | F177: 8400 | G177: 8800 | H177: 9000 | I177: 9100 | J177: 9900 | K177: 116.44 | L177: 349.32
A178: APR2014 | B178: Res / Bus | C178: 1 | D178: 4 | E178: 4 | F178: 8400 | G178: 8800 | H178: 9000 | I178: 9800 | K178: 105.86 | L178: 105.86
A179: APR2014 | B179: Res / Bus | C179: 33 | D179: 4 | E179: 132 | F179: 8400 | G179: 8800 | H179: 9000 | I179: 9900 | K179: 105.86 | L179: 3493.38
A180: APR2014 | B180: Res / Bus | C180: 250 | D180: 3 | E180: 750 | F180: 8400 | G180: 8800 | H180: 9100 | K180: 81.16 | L180: 20290
A181: APR2014 | B181: Res / Bus | C181: 3 | D181: 4 | E181: 12 | F181: 8400 | G181: 8800 | H181: 9100 | I181: 9800 | K181: 105.86 | L181: 317.58
A182: APR2014 | B182: Res / Bus | C182: 67 | D182: 4 | E182: 268 | F182: 8400 | G182: 8800 | H182: 9100 | I182: 9900 | K182: 105.86 | L182: 7092.62
A183: APR2014 | B183: Res / Bus | C183: 3 | D183: 3 | E183: 9 | F183: 8400 | G183: 8800 | H183: 9800 | K183: 95.28 | L183: 285.84
A184: APR2014 | B184: Res / Bus | C184: 41 | D184: 3 | E184: 123 | F184: 8400 | G184: 8800 | H184: 9900 | K184: 95.28 | L184: 3906.48
A185: APR2014 | B185: Res | C185: 143114 | D185: 2 | E185: 286228 | F185: 8400 | G185: 9000 | K185: 45.87 | L185: 6564639.18
A186: APR2014 | B186: Res | C186: 8195 | D186: 3 | E186: 24585 | F186: 8400 | G186: 9000 | H186: 9100 | K186: 56.45 | L186: 462607.75
A187: APR2014 | B187: Res | C187: 7 | D187: 4 | E187: 28 | F187: 8400 | G187: 9000 | H187: 9100 | I187: 9700 | K187: 81.15 | L187: 568.05
A188: APR2014 | B188: Res | C188: 8 | D188: 4 | E188: 32 | F188: 8400 | G188: 9000 | H188: 9100 | I188: 9800 | K188: 81.15 | L188: 649.2
A189: APR2014 | B189: Res | C189: 5570 | D189: 4 | E189: 22280 | F189: 8400 | G189: 9000 | H189: 9100 | I189: 9900 | K189: 81.15 | L189: 452005.5
A190: APR2014 | B190: Res | C190: 58 | D190: 3 | E190: 174 | F190: 8400 | G190: 9000 | H190: 9700 | K190: 70.57 | L190: 4093.06
A191: APR2014 | B191: Res | C191: 1 | D191: 4 | E191: 4 | F191: 8400 | G191: 9000 | H191: 9700 | I191: 9900 | K191: 95.27 | L191: 95.27
A192: APR2014 | B192: Res | C192: 37 | D192: 3 | E192: 111 | F192: 8400 | G192: 9000 | H192: 9800 | K192: 70.57 | L192: 2611.09
A193: APR2014 | B193: Res | C193: 44847 | D193: 3 | E193: 134541 | F193: 8400 | G193: 9000 | H193: 9900 | K193: 70.57 | L193: 3164852.79
A194: APR2014 | B194: Res | C194: 393452 | D194: 2 | E194: 786904 | F194: 8400 | G194: 9100 | K194: 45.87 | L194: 18047643.24
A195: APR2014 | B195: Res | C195: 169 | D195: 3 | E195: 507 | F195: 8400 | G195: 9100 | H195: 9700 | K195: 70.57 | L195: 11926.33
A196: APR2014 | B196: Res | C196: 91 | D196: 3 | E196: 273 | F196: 8400 | G196: 9100 | H196: 9800 | K196: 70.57 | L196: 6421.87
A197: APR2014 | B197: Res | C197: 85222 | D197: 3 | E197: 255666 | F197: 8400 | G197: 9100 | H197: 9900 | K197: 70.57 | L197: 6014116.54
A198: APR2014 | B198: Res | C198: 243 | D198: 2 | E198: 486 | F198: 8400 | G198: 9700 | K198: 59.99 | L198: 14577.57
A199: APR2014 | B199: Res | C199: 2 | D199: 3 | E199: 6 | F199: 8400 | G199: 9700 | H199: 9900 | K199: 84.69 | L199: 169.38
A200: APR2014 | B200: Res | C200: 133 | D200: 2 | E200: 266 | F200: 8400 | G200: 9800 | K200: 59.99 | L200: 7978.67
A201: APR2014 | B201: Res | C201: 63104 | D201: 2 | E201: 126208 | F201: 8400 | G201: 9900 | K201: 59.99 | L201: 3785608.96
A202: APR2014 | B202: Bus | C202: 90796 | D202: 1 | E202: 90796 | F202: 8500 | K202: 35.29 | L202: 3204190.84
A203: APR2014 | B203: Bus | C203: 552 | D203: 2 | E203: 1104 | F203: 8500 | G203: 8800 | K203: 70.58 | L203: 38960.16
A204: APR2014 | B204: Bus | C204: 6 | D204: 3 | E204: 18 | F204: 8500 | G204: 8800 | H204: 9000 | K204: 81.16 | L204: 486.96
A205: APR2014 | B205: Bus | C205: 30 | D205: 3 | E205: 90 | F205: 8500 | G205: 8800 | H205: 9100 | K205: 81.16 | L205: 2434.8
A206: APR2014 | B206: Bus | C206: 1 | D206: 4 | E206: 4 | F206: 8500 | G206: 8800 | H206: 9100 | I206: 9800 | K206: 105.86 | L206: 105.86
... 183 more rows

Sheet Meter Relationships
B2: Based on 12/13 $ not including oncosts and overheads
F3: Labour Hrs | G3: Labour Rate | H3: Material Costs | I3: Total
B4: DC 1 Element Single Phase | C4: 0.93 | D4: 0.79 | F4: 1.15 | G4: 67.55 | H4: 50 | I4: =F4*labour+SS -> 127.6825
B5: DC 2 Element Single Phase | D5: 0.21 | F5: 1.15 | G5: 67.55 | H5: 125 | I5: =F5*labour+SD -> 202.6825
B6: DC Polyphase | C6: 0.07 | D6: 0.84 | F6: 1.87 | G6: 67.55 | H6: 173 | I6: =F6*labour+MP -> 299.3185
B7: CT Polyphase | D7: 0.16 | F7: 1.87 | G7: 67.55 | H7: 173 | I7: =F7*labour+MP -> 299.3185
B9: Solar | D9: Labour Hrs | F9: PV (Vol)
B10: Meters Replaced | C10: 0.75 | D10: 0.98 | E10: Single | F10: 52054
B11: Meters Reprogrammed | C11: 0.25 | D11: 1.22 | E11: Multi | F11: 935
F12: =F10/(F10+F11) -> 0.9823548284
F13: =F11/(F10+F11) -> 0.01764517164
B15: Administration standard labour rate | D15: 63.57120355 | E15: 65.79644996 | F15: 68.0995889 | G15: 70.48334691 | H15: 72.95054598
B17: Oncosts & Overheads | D17: 2015-16 | E17: 2016-17 | F17: 2017-18 | G17: 2018-19 | H17: 2019-20
B18: Overhead Rate | D18: 0.4331 | E18: 0.4049 | F18: 0.4177 | G18: 0.4315 | H18: 0.4152
B19: Corporate Overhead Rate | D19: 0.07571586211 | E19: 0.06892497061 | F19: 0.06785335416 | G19: 0.06954852073 | H19: 0.06406545016
B20: Fleet Oncosts | D20: 0.1121 | E20: 0.1118 | F20: 0.1116 | G20: 0.1115 | H20: 0.1109
B21: Material Oncosts | D21: 0.0509 | E21: 0.0493 | F21: 0.0495 | G21: 0.0537 | H21: 0.0498
B23: Capital Allowance | D23: 0.2790278113 | E23: 0.3262673565 | F23: 0.3571488595 | G23: 0.4039233685 | H23: 0.4342291281
B25: Materials | D25: =(1+D21)*(1+D18)+(1+D19)-2 -> 0.5817606521
B26: Labour | D26: =(1+D20)*(1+D18)+(1+D19)+(1+D23)-3 -> 0.9484941834
B27: Contractors | D27: =(1+D18)+(1+D19)-2 -> 0.5088158621
B31: TYPE | C31: Lab - Hrs | D31: Lab - $ | E31: Materials | F31: Total | G31: Incl OC & OH | I31: Notes
B32: Primary | C32: =(D4*F4+D5*F5)*C4+(D6*F6+D7*F7)*C6 -> 1.2004 | D32: =labour*C32 -> 81.08702 | E32: =(D4*SS+D5*SD)*C4+(D6*MP+D7*H7)*C6 -> 73.2575 | F32: =D32+E32 -> 154.34452 | G32: =D32*(1+$D$26)+E32*(1+$D$25) -> 273.8734178 | H32: 1 | I32: Weighted based on meter population
B33: Controlled Load | E33: =SS -> 50 | F33: =D33+E33 -> 50 | G33: =D33*(1+$D$26)+E33*(1+$D$25) -> 79.08803261 | H33: =ROUND(G33/G32,1) -> 0.3 | I33: Cost of Single Phase single element meter only Labour and relate are costed to SCS
B34: Solar | C34: =D10*F12+D11*F13 -> 0.9842348412 | D34: =labour*C34 -> 66.48506352 | E34: =C10*(F12*SS+F13*MP) -> 39.12776708 | F34: =D34+E34 -> 105.6128306 | G34: =D34*(1+$D$26)+E34*(1+$D$25) -> 191.4365219 | H34: =ROUND(G34/G32,1) -> 0.7 | I34: Based on 75% meter replacement vs meter reprogram
